{"text_format":"1","workbook":"xlsx","n_sheets":9,"sheets":["Présentation","Actigramme","AMDEC","_Evolutions","ImprimA4","PA_EN_FR","Gravité","Occurrence","Détection"],"not_rendered":{"charts":0,"images":2,"macros":1,"external_links":0,"defined_names":17,"comments":3,"pivot_tables":0},"unopened":[],"bounds":{"document_bytes":16777216,"sheet_cells":100000,"rows_first":2000,"rows_last":500,"rows_between":2000,"halvings":0,"cell_chars":16384,"cell_head_chars":4096},"cells_cut":0,"cells_raw":0,"read":"whole","date_system":"1900"}

{"sheet":"Présentation","index":0,"n_rows":147,"n_cols":18,"rows_kept":147,"cut":false,"hidden":false,"merged":[[20,14,20,15],[20,16,20,17],[66,2,69,2],[70,2,73,2],[74,2,77,2],[78,2,81,2],[82,2,85,2],[46,2,49,2],[50,2,53,2],[54,2,57,2],[46,14,49,17],[50,14,53,17],[54,14,57,17],[58,14,61,17],[62,14,65,17],[66,14,69,17],[70,14,73,17],[74,14,77,17],[78,14,81,17],[74,9,77,12],[78,9,81,12],[82,9,85,12],[66,8,69,8],[70,8,73,8],[46,9,49,12],[50,9,53,12],[54,9,57,12],[58,9,61,12],[62,9,65,12],[66,9,69,12],[70,9,73,12],[20,2,20,3],[20,4,20,5],[20,6,20,7],[20,8,20,9],[20,10,20,11],[20,12,20,13],[46,4,49,7],[50,4,53,7],[54,4,57,7],[58,4,61,7],[62,4,65,7],[66,4,69,7],[70,4,73,7],[58,2,61,2],[62,2,65,2],[66,3,69,3],[12,2,12,3],[12,5,12,6],[16,2,16,3],[16,4,16,5],[16,6,16,7],[16,8,16,9],[16,10,16,11],[16,12,16,13],[16,14,16,15],[14,2,14,3],[15,2,15,3],[14,8,14,9],[14,10,14,11],[14,12,14,13],[18,2,18,3],[19,2,19,3],[15,8,15,9],[15,10,15,11],[15,12,15,13],[18,4,18,5],[18,6,18,7],[18,8,18,9],[18,10,18,11],[18,12,18,13],[15,4,15,5],[15,6,15,7],[2,11,2,17],[19,4,19,5],[19,6,19,7],[19,8,19,9],[19,10,19,11],[19,12,19,13],[12,8,12,9],[12,12,12,17],[16,16,16,17],[15,16,15,17],[15,14,15,15],[14,4,14,5],[19,14,19,15],[19,16,19,17],[18,14,18,15],[18,16,18,17],[14,6,14,7],[86,11,86,13],[86,15,86,17],[97,10,97,16],[98,10,98,16],[58,13,61,13],[86,7,86,9],[96,4,96,9],[97,4,97,9],[98,4,98,9],[58,8,61,8],[82,14,85,17],[74,8,77,8],[78,8,81,8],[82,8,85,8],[74,4,77,7],[78,4,81,7],[82,4,85,7],[66,13,69,13],[102,10,102,16],[95,10,95,16],[104,4,104,9],[105,4,105,9],[106,4,106,9],[99,4,99,9],[100,4,100,9],[101,4,101,9],[102,4,102,9],[103,4,103,9],[95,4,95,9],[82,3,85,3],[82,13,85,13],[78,3,81,3],[78,13,81,13],[74,3,77,3],[74,13,77,13],[70,3,73,3],[70,13,73,13],[0,10,0,17],[0,5,0,9],[4,6,4,9],[6,6,6,9],[8,6,8,9],[4,11,8,13],[4,15,8,17],[50,3,53,3],[50,8,53,8],[50,13,53,13],[46,13,49,13],[46,3,49,3],[46,8,49,8],[2,6,2,7],[14,16,14,17],[14,14,14,15],[107,4,107,9],[107,10,107,16],[108,4,108,9],[108,10,108,16],[109,4,109,9],[109,10,109,16],[30,3,32,9],[30,11,32,17],[96,10,96,16],[58,3,61,3],[34,3,36,17],[54,3,57,3],[54,8,57,8],[54,13,57,13],[103,10,103,16],[62,3,65,3],[62,8,65,8],[62,13,65,13],[104,10,104,16],[105,10,105,16],[106,10,106,16],[99,10,99,16],[100,10,100,16],[101,10,101,16],[110,4,110,9],[110,10,110,16],[111,4,111,9],[111,10,111,16],[112,4,112,9],[112,10,112,16],[113,4,113,9],[113,10,113,16],[114,4,114,9],[114,10,114,16],[115,4,115,9],[115,10,115,16],[116,4,116,9],[116,10,116,16],[117,4,117,9],[117,10,117,16],[118,4,118,9],[118,10,118,16],[119,4,119,9],[119,10,119,16],[120,4,120,9],[120,10,120,16],[121,4,121,9],[121,10,121,16],[122,4,122,9],[122,10,122,16],[123,4,123,9],[123,10,123,16],[124,4,124,9],[124,10,124,16],[125,4,125,9],[125,10,125,16],[126,4,126,9],[126,10,126,16],[127,4,127,9],[127,10,127,16],[128,4,128,9],[128,10,128,16],[129,4,129,9],[129,10,129,16],[130,4,130,9],[130,10,130,16],[131,4,131,9],[131,10,131,16],[132,4,132,9],[132,10,132,16],[133,4,133,9],[133,10,133,16],[134,4,134,9],[134,10,134,16],[135,4,135,9],[135,10,135,16],[136,4,136,9],[136,10,136,16],[137,4,137,9],[137,10,137,16],[138,4,138,9],[138,10,138,16],[139,4,139,9],[139,10,139,16],[145,4,145,9],[145,10,145,16],[146,4,146,9],[146,10,146,16],[140,4,140,9],[140,10,140,16],[141,4,141,9],[141,10,141,16],[142,4,142,9],[142,10,142,16],[143,4,143,9],[143,10,143,16],[144,4,144,9],[144,10,144,16]]}
[null,null,null,null,null,"A.M.D.E.C.",null,null,null,null,"Process (Processus)"]
[]
[null,null,null,null,null,"Réf. AMDEC:",null,null,"Revue:",{"$f":"INDEX(C:C,Position_Dernier(0,C:C,\"numlig\",\">=\"))","v":0},"Description:"]
[]
[null,null,null,null,null,"Profondeur:",null,null,null,null,"Inclusions: ",null,null,null,"Exclusions:"]
[]
[null,null,null,null,null,"Domaine:"]
[]
[null,null,null,null,null,"Client(s):"]
[]
[null,"Équipe / Team"]
[]
[null,"Animateur:",null,null,"Fonction:",null,null,"Contact:",null,null,null,"Commentaires:"]
[]
[null,"Permanent:"]
[null,"Fonction:"]
[null,"Contact:"]
[]
[null,"Expert: "]
[null,"Fonction:"]
[null,"Contact:"]
[]
[null,"Échéancier / Timing"]
[]
[null,null,"Ouverte le:","2025-01-01",null,"Temps Prévisionnel:",null,null,"Fin d'Analyse pour le:",null,null,"Plan d'Actions pour le:",null,null,"Terminée pour le:",null,"Suivi ?:"]
[]
[null,null,null,null,null,"Temps Passé: ",null,null,"Analyse Terminée le:",null,null,"Actions Planifiées le:",null,null,"Terminée le:",null,"Revue ≥:"]
[]
[null,"Engagement / InTent"]
[]
[null,null,"Besoins:",null,null,null,null,null,null,null,"Attentes:"]
[]
[]
[]
[null,null,"Vision Partagée:"]
[]
[]
[]
[null,"Explications / Tools"]
[null,null,null,{"$f":"Position_premier(\"Statut\",Gravité!1:1,\"NumCol\",\"=\",TRUE)","v":5},{"$f":"Position_premier($E$46,Gravité!1:1,\"NumCol\",\"=\",TRUE)","v":6},null,null,null,{"$f":"Position_premier(\"Statut\",Occurrence!1:1,\"NumCol\",\"=\",TRUE)","v":5},{"$f":"Position_premier($J$46,Occurrence!1:1,\"NumCol\",\"=\",TRUE)","v":6},{"$f":"IF(E46=\"Produit\",1,IF(E46=\"Process\",2,IF(E46=\"Procédé\",3,IF(E46=\"Projet\",4,5))))","v":5},{"$f":"IF(J46=\"Produit\",1,IF(J46=\"Process\",2,IF(J46=\"Procédé\",3,IF(J46=\"Projet\",4,5))))","v":5},{"$f":"IF(O46=\"Produit\",1,IF(O46=\"Process\",2,IF(O46=\"Procédé\",3,IF(O46=\"Projet\",4,5))))","v":5},{"$f":"Position_premier(\"Statut\",Détection!1:1,\"NumCol\",\"=\",TRUE)","v":5},{"$f":"Position_premier($O$46,Détection!1:1,\"NumCol\",\"=\",TRUE)","v":6}]
[null,null,null,"Paramétrage de la Cotation :",null,{"$f":"\"Seuils d'Identification de Caractéristiques Spéciales (pour note Max de \" & Note_Max & \"):\"","v":"Seuils d'Identification de Caractéristiques Spéciales (pour note Max de 5):"},null,null,null,null,null,null,{"$f":"\"Seuils d'identification d'Éléments Critiques (pour note Max de \" & Note_Max & \"):\"","v":"Seuils d'identification d'Éléments Critiques (pour note Max de 5):"}]
[null,null,"Note Max:",5,null,null,"Type","Code","G","O","D",null,null,"Type","Code","G","O","D"]
[null,null,"Seuil NPR:",25,null,null,"Caractéristique Critique","CC",{"$f":"IF(Note_Max = 5,5,9)","v":5},0,0,null,null,"Caractéristique Clé","KC",{"$f":"IF(Note_Max = 5,4,7)","v":4},{"$f":"IF(Note_Max = 5,4,7)","v":4},0]
[null,null,"Priorité d'Action:","NPR",null,null,"Caractéristique Significative","SC",{"$f":"IF(Note_Max = 5,3,5)","v":3},{"$f":"IF(Note_Max = 5,2,4)","v":2},0,null,null,"Procédé Spécial","PS",{"$f":"IF(Note_Max = 5,2,3)","v":2},{"$f":"IF(Note_Max = 5,2,3)","v":2},{"$f":"IF(Note_Max = 5,4,6)","v":4}]
[]
[null,null,"Valeur","Gravité","Personnalisé",{"$f":"\"Description \" &D46","v":"Description Gravité"},null,null,"Occurrence","Personnalisé",{"$f":"\"Description \" &I46","v":"Description Occurrence"},null,null,"Détection","Personnalisé",{"$f":"\"Description \" &N46","v":"Description Détection"}]
[null,null,{"$f":"1","v":1},{"$f":"IFERROR(VLOOKUP($C47+IF($D$42=5,$C47-0.5,0),Gravité!$A:$AX,D$40,FALSE),\"\")","v":"Négligeable"},{"$f":"IFERROR(VLOOKUP($C47+IF($D$42=5,$C47-0.5,0),Gravité!$A:$AX,E$40,FALSE),\"\")","v":"Sans Effet"},null,null,null,{"$f":"IFERROR(VLOOKUP($C47+IF($D$42=5,$C47-0.5,0),Occurrence!$A:$BE,I$40,FALSE),\"\")","v":"Improbable"},{"$f":"IFERROR(VLOOKUP($C47+IF($D$42=5,$C47-0.5,0),Occurrence!$A:$BE,J$40,FALSE),\"\")","v":"Impossible (jamais vu)"},null,null,null,{"$f":"IFERROR(VLOOKUP($C47+IF($D$42=5,$C47-0.5,0),Détection!$A:$BE,N$40,FALSE),\"\")","v":"Certaine"},{"$f":"IFERROR(VLOOKUP($C47+IF($D$42=5,$C47-0.5,0),Détection!$A:$BE,O$40,FALSE),\"\")","v":"Toujours (100%)"}]
[]
[]
[]
[null,null,{"$f":"IF(C47<$D$42,C47+1,\"\")","v":2},{"$f":"IFERROR(VLOOKUP($C51+IF($D$42=5,$C51-0.5,0),Gravité!$A:$AX,D$40,FALSE),\"\")","v":"Mineure"},{"$f":"IFERROR(VLOOKUP($C51+IF($D$42=5,$C51-0.5,0),Gravité!$A:$AX,E$40,FALSE),\"\")","v":"Non-Conformité Acceptable"},null,null,null,{"$f":"IFERROR(VLOOKUP($C51+IF($D$42=5,$C51-0.5,0),Occurrence!$A:$BE,I$40,FALSE),\"\")","v":"Rare"},{"$f":"IFERROR(VLOOKUP($C51+IF($D$42=5,$C51-0.5,0),Occurrence!$A:$BE,J$40,FALSE),\"\")","v":"Parfois (≤4 ans)"},null,null,null,{"$f":"IFERROR(VLOOKUP($C51+IF($D$42=5,$C51-0.5,0),Détection!$A:$BE,N$40,FALSE),\"\")","v":"Facile"},{"$f":"IFERROR(VLOOKUP($C51+IF($D$42=5,$C51-0.5,0),Détection!$A:$BE,O$40,FALSE),\"\")","v":"Facilement (≥ 80%)"}]
[]
[]
[]
[null,null,{"$f":"IF(C51<$D$42,C51+1,\"\")","v":3},{"$f":"IFERROR(VLOOKUP($C55+IF($D$42=5,$C55-0.5,0),Gravité!$A:$AX,D$40,FALSE),\"\")","v":"Important"},{"$f":"IFERROR(VLOOKUP($C55+IF($D$42=5,$C55-0.5,0),Gravité!$A:$AX,E$40,FALSE),\"\")","v":"Dégradation Mineure"},null,null,null,{"$f":"IFERROR(VLOOKUP($C55+IF($D$42=5,$C55-0.5,0),Occurrence!$A:$BE,I$40,FALSE),\"\")","v":"Probable"},{"$f":"IFERROR(VLOOKUP($C55+IF($D$42=5,$C55-0.5,0),Occurrence!$A:$BE,J$40,FALSE),\"\")","v":"Souvent (≤1 an)"},null,null,null,{"$f":"IFERROR(VLOOKUP($C55+IF($D$42=5,$C55-0.5,0),Détection!$A:$BE,N$40,FALSE),\"\")","v":"Probable"},{"$f":"IFERROR(VLOOKUP($C55+IF($D$42=5,$C55-0.5,0),Détection!$A:$BE,O$40,FALSE),\"\")","v":"Moyennement (≥ 50%)"}]
[]
[]
[]
[null,null,{"$f":"IF(C55<$D$42,C55+1,\"\")","v":4},{"$f":"IFERROR(VLOOKUP($C59+IF($D$42=5,$C59-0.5,0),Gravité!$A:$AX,D$40,FALSE),\"\")","v":"Critique"},{"$f":"IFERROR(VLOOKUP($C59+IF($D$42=5,$C59-0.5,0),Gravité!$A:$AX,E$40,FALSE),\"\")","v":"Perte de la Fonction Attendue"},null,null,null,{"$f":"IFERROR(VLOOKUP($C59+IF($D$42=5,$C59-0.5,0),Occurrence!$A:$BE,I$40,FALSE),\"\")","v":"Fréquent"},{"$f":"IFERROR(VLOOKUP($C59+IF($D$42=5,$C59-0.5,0),Occurrence!$A:$BE,J$40,FALSE),\"\")","v":"Récurrent (≤1 mois)"},null,null,null,{"$f":"IFERROR(VLOOKUP($C59+IF($D$42=5,$C59-0.5,0),Détection!$A:$BE,N$40,FALSE),\"\")","v":"Difficile"},{"$f":"IFERROR(VLOOKUP($C59+IF($D$42=5,$C59-0.5,0),Détection!$A:$BE,O$40,FALSE),\"\")","v":"Difficilement (≥ 20%)"}]
[]
[]
[]
[null,null,{"$f":"IF(C59<$D$42,C59+1,\"\")","v":5},{"$f":"IFERROR(VLOOKUP($C63+IF($D$42=5,$C63-0.5,0),Gravité!$A:$AX,D$40,FALSE),\"\")","v":"Sécuritaire"},{"$f":"IFERROR(VLOOKUP($C63+IF($D$42=5,$C63-0.5,0),Gravité!$A:$AX,E$40,FALSE),\"\")","v":"Danger de Mort Possible"},null,null,null,{"$f":"IFERROR(VLOOKUP($C63+IF($D$42=5,$C63-0.5,0),Occurrence!$A:$BE,I$40,FALSE),\"\")","v":"Systématique"},{"$f":"IFERROR(VLOOKUP($C63+IF($D$42=5,$C63-0.5,0),Occurrence!$A:$BE,J$40,FALSE),\"\")","v":"Inévitable (≤3 jours)"},null,null,null,{"$f":"IFERROR(VLOOKUP($C63+IF($D$42=5,$C63-0.5,0),Détection!$A:$BE,N$40,FALSE),\"\")","v":"Impossible"},{"$f":"IFERROR(VLOOKUP($C63+IF($D$42=5,$C63-0.5,0),Détection!$A:$BE,O$40,FALSE),\"\")","v":"Jamais certaine (< 20%)"}]
[]
[]
[]
[null,null,{"$f":"IF(C63<$D$42,C63+1,\"\")","v":""},{"$f":"IFERROR(VLOOKUP($C67+IF($D$42=5,$C67-0.5,0),Gravité!$A:$AX,D$40,FALSE),\"\")","v":""},{"$f":"IFERROR(VLOOKUP($C67+IF($D$42=5,$C67-0.5,0),Gravité!$A:$AX,E$40,FALSE),\"\")","v":""},null,null,null,{"$f":"IFERROR(VLOOKUP($C67+IF($D$42=5,$C67-0.5,0),Occurrence!$A:$BE,I$40,FALSE),\"\")","v":""},{"$f":"IFERROR(VLOOKUP($C67+IF($D$42=5,$C67-0.5,0),Occurrence!$A:$BE,J$40,FALSE),\"\")","v":""},null,null,null,{"$f":"IFERROR(VLOOKUP($C67+IF($D$42=5,$C67-0.5,0),Détection!$A:$BE,N$40,FALSE),\"\")","v":""},{"$f":"IFERROR(VLOOKUP($C67+IF($D$42=5,$C67-0.5,0),Détection!$A:$BE,O$40,FALSE),\"\")","v":""}]
[]
[]
[]
[null,null,{"$f":"IF(C67<$D$42,C67+1,\"\")","v":""},{"$f":"IFERROR(VLOOKUP($C71+IF($D$42=5,$C71-0.5,0),Gravité!$A:$AX,D$40,FALSE),\"\")","v":""},{"$f":"IFERROR(VLOOKUP($C71+IF($D$42=5,$C71-0.5,0),Gravité!$A:$AX,E$40,FALSE),\"\")","v":""},null,null,null,{"$f":"IFERROR(VLOOKUP($C71+IF($D$42=5,$C71-0.5,0),Occurrence!$A:$BE,I$40,FALSE),\"\")","v":""},{"$f":"IFERROR(VLOOKUP($C71+IF($D$42=5,$C71-0.5,0),Occurrence!$A:$BE,J$40,FALSE),\"\")","v":""},null,null,null,{"$f":"IFERROR(VLOOKUP($C71+IF($D$42=5,$C71-0.5,0),Détection!$A:$BE,N$40,FALSE),\"\")","v":""},{"$f":"IFERROR(VLOOKUP($C71+IF($D$42=5,$C71-0.5,0),Détection!$A:$BE,O$40,FALSE),\"\")","v":""}]
[]
[]
[]
[null,null,{"$f":"IF(C71<$D$42,C71+1,\"\")","v":""},{"$f":"IFERROR(VLOOKUP($C75+IF($D$42=5,$C75-0.5,0),Gravité!$A:$AX,D$40,FALSE),\"\")","v":""},{"$f":"IFERROR(VLOOKUP($C75+IF($D$42=5,$C75-0.5,0),Gravité!$A:$AX,E$40,FALSE),\"\")","v":""},null,null,null,{"$f":"IFERROR(VLOOKUP($C75+IF($D$42=5,$C75-0.5,0),Occurrence!$A:$BE,I$40,FALSE),\"\")","v":""},{"$f":"IFERROR(VLOOKUP($C75+IF($D$42=5,$C75-0.5,0),Occurrence!$A:$BE,J$40,FALSE),\"\")","v":""},null,null,null,{"$f":"IFERROR(VLOOKUP($C75+IF($D$42=5,$C75-0.5,0),Détection!$A:$BE,N$40,FALSE),\"\")","v":""},{"$f":"IFERROR(VLOOKUP($C75+IF($D$42=5,$C75-0.5,0),Détection!$A:$BE,O$40,FALSE),\"\")","v":""}]
[]
[]
[]
[null,null,{"$f":"IF(C75<$D$42,C75+1,\"\")","v":""},{"$f":"IFERROR(VLOOKUP($C79+IF($D$42=5,$C79-0.5,0),Gravité!$A:$AX,D$40,FALSE),\"\")","v":""},{"$f":"IFERROR(VLOOKUP($C79+IF($D$42=5,$C79-0.5,0),Gravité!$A:$AX,E$40,FALSE),\"\")","v":""},null,null,null,{"$f":"IFERROR(VLOOKUP($C79+IF($D$42=5,$C79-0.5,0),Occurrence!$A:$BE,I$40,FALSE),\"\")","v":""},{"$f":"IFERROR(VLOOKUP($C79+IF($D$42=5,$C79-0.5,0),Occurrence!$A:$BE,J$40,FALSE),\"\")","v":""},null,null,null,{"$f":"IFERROR(VLOOKUP($C79+IF($D$42=5,$C79-0.5,0),Détection!$A:$BE,N$40,FALSE),\"\")","v":""},{"$f":"IFERROR(VLOOKUP($C79+IF($D$42=5,$C79-0.5,0),Détection!$A:$BE,O$40,FALSE),\"\")","v":""}]
[]
[]
[]
[null,null,{"$f":"IF(C79<$D$42,C79+1,\"\")","v":""},{"$f":"IFERROR(VLOOKUP($C83+IF($D$42=5,$C83-0.5,0),Gravité!$A:$AX,D$40,FALSE),\"\")","v":""},{"$f":"IFERROR(VLOOKUP($C83+IF($D$42=5,$C83-0.5,0),Gravité!$A:$AX,E$40,FALSE),\"\")","v":""},null,null,null,{"$f":"IFERROR(VLOOKUP($C83+IF($D$42=5,$C83-0.5,0),Occurrence!$A:$BE,I$40,FALSE),\"\")","v":""},{"$f":"IFERROR(VLOOKUP($C83+IF($D$42=5,$C83-0.5,0),Occurrence!$A:$BE,J$40,FALSE),\"\")","v":""},null,null,null,{"$f":"IFERROR(VLOOKUP($C83+IF($D$42=5,$C83-0.5,0),Détection!$A:$BE,N$40,FALSE),\"\")","v":""},{"$f":"IFERROR(VLOOKUP($C83+IF($D$42=5,$C83-0.5,0),Détection!$A:$BE,O$40,FALSE),\"\")","v":""}]
[]
[]
[]
[]
[null,"État / Tasks"]
[]
[null,null,"Etat de l'Analyse:",{"$f":"MIN(100,IF(J90=0,0,J92*100/J90))","v":0},null,null,null,null,"Nb de Modes identifiés:",{"$f":"COUNTA(AMDEC!$C:$C)-1","v":0},null,null,"Nb de NPR ≥ Seuil:",{"$f":"COUNTIF(AMDEC!L:L,\">=\"&$D$43)","v":0},null,null,"Nb de NPR' ≥ Seuil:",{"$f":"COUNTIF(AMDEC!$T:$T,\">=\"&$D$43)","v":0}]
[]
[null,null,"Etat des Actions:",{"$f":"MIN(100,IF(N92=0,0,N94*100/N92))","v":0},null,null,null,null,"Nb d'Effets identifiés:",{"$f":"COUNTA(AMDEC!$D:$D)-1","v":0},null,null,"Nb d'Actions proposées:",{"$f":"COUNTA(AMDEC!$P:$P)-1","v":0},null,null,"NPR moyen:",{"$f":"IF(ISERROR(AVERAGE(AMDEC!$L:$L)),\"\",AVERAGE(AMDEC!$L:$L))","v":0}]
[]
[null,null,"Etat de l'AMDEC:",{"$f":"AVERAGE(D90,D92)","v":0},null,null,null,null,"Nb de Causes identifiées:",{"$f":"COUNTA(AMDEC!$G:$G)-1","v":0},null,null,"Nb d'Actions soldées:",{"$f":"COUNTA(AMDEC!$V:$V)-1","v":0},null,null,"NPR' moyen:",{"$f":"IF(ISERROR(AVERAGE(AMDEC!$T:$T)),\"\",AVERAGE(AMDEC!$T:$T))","v":0}]
[]
[null,null,"Revue","du","Objet de la Révision - But de l'AMDEC",null,null,null,null,null,"Compléments d'informations",null,null,null,null,null,null,"Temps hh:mm"]
[null,null,0,{"$f":"D25","v":"2025-01-01"}]
[null,null,{"$f":"IF(D98>0,C97+1,\"\")","v":""}]
[null,null,""]
[null,null,""]
[null,null,""]
[null,null,""]
[null,null,""]
[null,null,""]
[null,null,""]
[null,null,""]
[null,null,""]
[null,null,""]
[null,null,""]
[null,null,""]
[null,null,""]
[null,null,""]
[null,null,""]
[null,null,""]
[null,null,""]
[null,null,""]
[null,null,""]
[null,null,""]
[null,null,""]
[null,null,""]
[null,null,""]
[null,null,""]
[null,null,""]
[null,null,""]
[null,null,""]
[null,null,""]
[null,null,""]
[null,null,""]
[null,null,""]
[null,null,""]
[null,null,""]
[null,null,""]
[null,null,""]
[null,null,""]
[null,null,""]
[null,null,""]
[null,null,""]
[null,null,""]
[null,null,""]
[null,null,""]
[null,null,""]
[null,null,""]
[null,null,""]
[null,null,""]
[null,null,""]
[null,null,""]
[null,null,""]

{"sheet":"Actigramme","index":1,"n_rows":39,"n_cols":54,"rows_kept":39,"cut":false,"hidden":false,"merged":[]}
[null,null,null,null,null,null,null,null,null,null,null,null,null,null,null,null,null,null,null,null,null,null,null,null,null,null,null,null,null,null,{"$f":"\"Décomposition Fonctionnelle du \" & LEFT(Présentation!K1 & \" \",SEARCH(\" \",Présentation!K1 & \" \")) & \":\"","v":"Décomposition Fonctionnelle du Process :"},{"$f":"I9 & \" [\" & BB39 & \"]\"","v":"Nom_du_Processus [P00]"}]
[]
[]
[]
[]
[]
[]
[]
[null,null,null,"Supérieur:","Aucun",null,null,null,"Nom_du_Processus"]
[]
[]
[]
[]
[]
[]
[]
[]
[]
[]
[]
[]
[]
[]
[]
[]
[]
[]
[]
[]
[]
[]
[]
[]
[]
[]
[]
[]
[]
[null,null,null,null,null,null,null,null,null,null,null,null,null,null,null,null,null,null,null,null,null,null,null,null,null,null,null,null,null,null,null,null,null,null,null,null,null,null,null,null,null,null,null,null,null,null,null,null,null,null,null,null,null,"P00"]

{"sheet":"AMDEC","index":2,"n_rows":31,"n_cols":24,"rows_kept":31,"cut":false,"hidden":false,"merged":[]}
["N°",{"$f":"IFERROR(IF(Présentation!K1=\"Procédé (Moyen)\",\"Constituant\",IF(Présentation!K1=\"Projet\",\"Etape\",IF(Présentation!K1=\"Produit (Conception)\",\"Elément\",IF(Présentation!K1=\"Process (Processus)\",\"Opération\",#N/A)))) &\" / Fonction / Exigence\",\"/!\\ Type d'AMDEC sur 'Présentation'$J$1\")","v":"Opération / Fonction / Exigence"},"Mode de Défaillance Potentielle","Effet Potentiel de la Défaillance","G","CS\nEC","Cause Potentielle de la Défaillance","Prévention sur Cause","O","Inspection sur Mode (ou Effets) ","D",{"$f":"\"NPR (>\"&Présentation!D43&\")\"","v":"NPR (>25)"},{"$f":"\"IPA (\" & Présentation!D44 & \")\"","v":"IPA (NPR)"},"Action Recommandée","Responsable","pour le","G'","O'","D'","NPR'","Remarques / Acceptation des risques résiduels","Traité le","Statut Risque",{"$f":"100%-IF((IF(IFERROR(MAX(AMDEC!W:W),0%)>25%,-1,1))>0,EXP(-EXP((2.25/25%)*(IFERROR(MAX(AMDEC!W:W),0%)-25%))),EXP(-EXP((0.834/75%)*(IFERROR(MAX(AMDEC!W:W),0%)-25%))))","v":0.10003483733937224}]
[1,null,null,null,null,{"$f":"IF(AND(E2>=Présentation!$I$43,I2>=Présentation!$J$43,K2>=Présentation!$K$43),\"CC\",IF(AND(E2>=Présentation!$P$43,I2>=Présentation!$Q$43,K2>=Présentation!$R$43),\"KC\",IF(AND(E2>=Présentation!$I$44,I2>=Présentation!$J$44,K2>=Présentation!$K$44),\"SC\",IF(AND(E2>=Présentation!$P$44,I2>=Présentation!$Q$44,K2>=Présentation!$R$44),\"PS\",\"\"))))","v":""},null,null,null,null,null,{"$f":"IFERROR(IF(C2>\"\",IF(D2>\"\",IF(E2=\"\",Note_Max,E2)*IF(I2=\"\",Note_Max,I2)*IF(K2=\"\",Note_Max,K2),3),0),0)","v":0},{"$f":"IF(Présentation!$D$44=\"IC\",E2*I2,IF(Présentation!$D$44=\"GO\",E2*10+I2,IF(Présentation!$D$44=\"GOD\",E2*100+I2*10+K2,IF(Présentation!$D$44=\"PA\",IFERROR(INDEX(PA_EN_FR!$H$2:$H$28,(Position_Dernier(K2*10/Note_Max,OFFSET(PA_EN_FR!$E$2,Position_premier(I2*10/Note_Max,OFFSET(PA_EN_FR!$D$2,Position_premier(E2*10/Note_Max,PA_EN_FR!$B$2:$B$28,\"NumLig\",\">=\",TRUE)-2,0,Position_Dernier(E2*10/Note_Max,PA_EN_FR!$A$2:$A$28,\"NumLig\",\"<=\",TRUE)-Position_premier(E2*10/Note_Max,PA_EN_FR!$B$2:$B$28,\"NumLig\",\">=\")+1,1),\"NumLig\",\">=\",TRUE)-2,0,Position_Dernier(I2*10/Note_Max,OFFSET(PA_EN_FR!$C$2,Position_premier(E2*10/Note_Max,PA_EN_FR!$B$2:$B$28,\"NumLig\",\">=\",TRUE)-2,0,Position_Dernier(E2*10/Note_Max,PA_EN_FR!$A$2:$A$28,\"NumLig\",\"<=\",TRUE)-Position_premier(E2*10/Note_Max,PA_EN_FR!$B$2:$B$28,\"NumLig\",\">=\",TRUE)+1,1),\"NumLig\",\"<=\",TRUE)-Position_premier(I2*10/Note_Max,OFFSET(PA_EN_FR!$D$2,Position_premier(E2*10/Note_Max,PA_EN_FR!$B$2:$B$28,\"NumLig\",\">=\",TRUE)-2,0,Position_Dernier(E2*10/Note_Max,PA_EN_FR!$A$2:$A$28,\"NumLig\",\"<=\",TRUE)-Position_premier(E2*10/Note_Max,PA_EN_FR!$B$2:$B$28,\"NumLig\",\">=\",TRUE)+1,1),\"NumLig\",\">=\",TRUE)+1,1),\"NumLig\",\"<=\",TRUE))-1),\"\"),L2))))","v":0},null,null,null,{"$f":"IFERROR(IF(L2>0,IF(E2=\"\",Note_Max,E2),0),0)","v":0},null,null,{"$f":"IFERROR(IF(V2=\"\",L2,IF(Q2>0,IF(Q2=\"\",IF(E2=\"\",Note_Max,E2),Q2)*IF(R2=\"\",IF(I2=\"\",Note_Max,I2),R2)*IF(S2=\"\",IF(K2=\"\",Note_Max,K2),S2),0)),L2)","v":0},null,null,{"$f":"IF(L2>0,IF(T2<Seuil_NPR,0,25%+IF(N2=\"\",0.25,0)+IF(O2=\"\",0.25,0)+IF(P2=\"\",0.25,0)+IF(V2=\"\",IF(AND(P2>0,P2<TODAY()),0.25,0),0)),\"\")","v":""}]
[2,null,null,null,null,{"$f":"IF(AND(E3>=Présentation!$I$43,I3>=Présentation!$J$43,K3>=Présentation!$K$43),\"CC\",IF(AND(E3>=Présentation!$P$43,I3>=Présentation!$Q$43,K3>=Présentation!$R$43),\"KC\",IF(AND(E3>=Présentation!$I$44,I3>=Présentation!$J$44,K3>=Présentation!$K$44),\"SC\",IF(AND(E3>=Présentation!$P$44,I3>=Présentation!$Q$44,K3>=Présentation!$R$44),\"PS\",\"\"))))","v":""},null,null,null,null,null,0,{"$f":"IF(Présentation!$D$44=\"IC\",E3*I3,IF(Présentation!$D$44=\"GO\",E3*10+I3,IF(Présentation!$D$44=\"GOD\",E3*100+I3*10+K3,IF(Présentation!$D$44=\"PA\",IFERROR(INDEX(PA_EN_FR!$H$2:$H$28,(Position_Dernier(K3*10/Note_Max,OFFSET(PA_EN_FR!$E$2,Position_premier(I3*10/Note_Max,OFFSET(PA_EN_FR!$D$2,Position_premier(E3*10/Note_Max,PA_EN_FR!$B$2:$B$28,\"NumLig\",\">=\",TRUE)-2,0,Position_Dernier(E3*10/Note_Max,PA_EN_FR!$A$2:$A$28,\"NumLig\",\"<=\",TRUE)-Position_premier(E3*10/Note_Max,PA_EN_FR!$B$2:$B$28,\"NumLig\",\">=\")+1,1),\"NumLig\",\">=\",TRUE)-2,0,Position_Dernier(I3*10/Note_Max,OFFSET(PA_EN_FR!$C$2,Position_premier(E3*10/Note_Max,PA_EN_FR!$B$2:$B$28,\"NumLig\",\">=\",TRUE)-2,0,Position_Dernier(E3*10/Note_Max,PA_EN_FR!$A$2:$A$28,\"NumLig\",\"<=\",TRUE)-Position_premier(E3*10/Note_Max,PA_EN_FR!$B$2:$B$28,\"NumLig\",\">=\",TRUE)+1,1),\"NumLig\",\"<=\",TRUE)-Position_premier(I3*10/Note_Max,OFFSET(PA_EN_FR!$D$2,Position_premier(E3*10/Note_Max,PA_EN_FR!$B$2:$B$28,\"NumLig\",\">=\",TRUE)-2,0,Position_Dernier(E3*10/Note_Max,PA_EN_FR!$A$2:$A$28,\"NumLig\",\"<=\",TRUE)-Position_premier(E3*10/Note_Max,PA_EN_FR!$B$2:$B$28,\"NumLig\",\">=\",TRUE)+1,1),\"NumLig\",\">=\",TRUE)+1,1),\"NumLig\",\"<=\",TRUE))-1),\"\"),L3))))","v":0},null,null,null,0,null,null,0,null,null,""]
[3,null,null,null,null,{"$f":"IF(AND(E4>=Présentation!$I$43,I4>=Présentation!$J$43,K4>=Présentation!$K$43),\"CC\",IF(AND(E4>=Présentation!$P$43,I4>=Présentation!$Q$43,K4>=Présentation!$R$43),\"KC\",IF(AND(E4>=Présentation!$I$44,I4>=Présentation!$J$44,K4>=Présentation!$K$44),\"SC\",IF(AND(E4>=Présentation!$P$44,I4>=Présentation!$Q$44,K4>=Présentation!$R$44),\"PS\",\"\"))))","v":""},null,null,null,null,null,0,{"$f":"IF(Présentation!$D$44=\"IC\",E4*I4,IF(Présentation!$D$44=\"GO\",E4*10+I4,IF(Présentation!$D$44=\"GOD\",E4*100+I4*10+K4,IF(Présentation!$D$44=\"PA\",IFERROR(INDEX(PA_EN_FR!$H$2:$H$28,(Position_Dernier(K4*10/Note_Max,OFFSET(PA_EN_FR!$E$2,Position_premier(I4*10/Note_Max,OFFSET(PA_EN_FR!$D$2,Position_premier(E4*10/Note_Max,PA_EN_FR!$B$2:$B$28,\"NumLig\",\">=\",TRUE)-2,0,Position_Dernier(E4*10/Note_Max,PA_EN_FR!$A$2:$A$28,\"NumLig\",\"<=\",TRUE)-Position_premier(E4*10/Note_Max,PA_EN_FR!$B$2:$B$28,\"NumLig\",\">=\")+1,1),\"NumLig\",\">=\",TRUE)-2,0,Position_Dernier(I4*10/Note_Max,OFFSET(PA_EN_FR!$C$2,Position_premier(E4*10/Note_Max,PA_EN_FR!$B$2:$B$28,\"NumLig\",\">=\",TRUE)-2,0,Position_Dernier(E4*10/Note_Max,PA_EN_FR!$A$2:$A$28,\"NumLig\",\"<=\",TRUE)-Position_premier(E4*10/Note_Max,PA_EN_FR!$B$2:$B$28,\"NumLig\",\">=\",TRUE)+1,1),\"NumLig\",\"<=\",TRUE)-Position_premier(I4*10/Note_Max,OFFSET(PA_EN_FR!$D$2,Position_premier(E4*10/Note_Max,PA_EN_FR!$B$2:$B$28,\"NumLig\",\">=\",TRUE)-2,0,Position_Dernier(E4*10/Note_Max,PA_EN_FR!$A$2:$A$28,\"NumLig\",\"<=\",TRUE)-Position_premier(E4*10/Note_Max,PA_EN_FR!$B$2:$B$28,\"NumLig\",\">=\",TRUE)+1,1),\"NumLig\",\">=\",TRUE)+1,1),\"NumLig\",\"<=\",TRUE))-1),\"\"),L4))))","v":0},null,null,null,0,null,null,0,null,null,""]
[4,null,null,null,null,{"$f":"IF(AND(E5>=Présentation!$I$43,I5>=Présentation!$J$43,K5>=Présentation!$K$43),\"CC\",IF(AND(E5>=Présentation!$P$43,I5>=Présentation!$Q$43,K5>=Présentation!$R$43),\"KC\",IF(AND(E5>=Présentation!$I$44,I5>=Présentation!$J$44,K5>=Présentation!$K$44),\"SC\",IF(AND(E5>=Présentation!$P$44,I5>=Présentation!$Q$44,K5>=Présentation!$R$44),\"PS\",\"\"))))","v":""},null,null,null,null,null,0,{"$f":"IF(Présentation!$D$44=\"IC\",E5*I5,IF(Présentation!$D$44=\"GO\",E5*10+I5,IF(Présentation!$D$44=\"GOD\",E5*100+I5*10+K5,IF(Présentation!$D$44=\"PA\",IFERROR(INDEX(PA_EN_FR!$H$2:$H$28,(Position_Dernier(K5*10/Note_Max,OFFSET(PA_EN_FR!$E$2,Position_premier(I5*10/Note_Max,OFFSET(PA_EN_FR!$D$2,Position_premier(E5*10/Note_Max,PA_EN_FR!$B$2:$B$28,\"NumLig\",\">=\",TRUE)-2,0,Position_Dernier(E5*10/Note_Max,PA_EN_FR!$A$2:$A$28,\"NumLig\",\"<=\",TRUE)-Position_premier(E5*10/Note_Max,PA_EN_FR!$B$2:$B$28,\"NumLig\",\">=\")+1,1),\"NumLig\",\">=\",TRUE)-2,0,Position_Dernier(I5*10/Note_Max,OFFSET(PA_EN_FR!$C$2,Position_premier(E5*10/Note_Max,PA_EN_FR!$B$2:$B$28,\"NumLig\",\">=\",TRUE)-2,0,Position_Dernier(E5*10/Note_Max,PA_EN_FR!$A$2:$A$28,\"NumLig\",\"<=\",TRUE)-Position_premier(E5*10/Note_Max,PA_EN_FR!$B$2:$B$28,\"NumLig\",\">=\",TRUE)+1,1),\"NumLig\",\"<=\",TRUE)-Position_premier(I5*10/Note_Max,OFFSET(PA_EN_FR!$D$2,Position_premier(E5*10/Note_Max,PA_EN_FR!$B$2:$B$28,\"NumLig\",\">=\",TRUE)-2,0,Position_Dernier(E5*10/Note_Max,PA_EN_FR!$A$2:$A$28,\"NumLig\",\"<=\",TRUE)-Position_premier(E5*10/Note_Max,PA_EN_FR!$B$2:$B$28,\"NumLig\",\">=\",TRUE)+1,1),\"NumLig\",\">=\",TRUE)+1,1),\"NumLig\",\"<=\",TRUE))-1),\"\"),L5))))","v":0},null,null,null,0,null,null,0,null,null,""]
[5,null,null,null,null,{"$f":"IF(AND(E6>=Présentation!$I$43,I6>=Présentation!$J$43,K6>=Présentation!$K$43),\"CC\",IF(AND(E6>=Présentation!$P$43,I6>=Présentation!$Q$43,K6>=Présentation!$R$43),\"KC\",IF(AND(E6>=Présentation!$I$44,I6>=Présentation!$J$44,K6>=Présentation!$K$44),\"SC\",IF(AND(E6>=Présentation!$P$44,I6>=Présentation!$Q$44,K6>=Présentation!$R$44),\"PS\",\"\"))))","v":""},null,null,null,null,null,0,{"$f":"IF(Présentation!$D$44=\"IC\",E6*I6,IF(Présentation!$D$44=\"GO\",E6*10+I6,IF(Présentation!$D$44=\"GOD\",E6*100+I6*10+K6,IF(Présentation!$D$44=\"PA\",IFERROR(INDEX(PA_EN_FR!$H$2:$H$28,(Position_Dernier(K6*10/Note_Max,OFFSET(PA_EN_FR!$E$2,Position_premier(I6*10/Note_Max,OFFSET(PA_EN_FR!$D$2,Position_premier(E6*10/Note_Max,PA_EN_FR!$B$2:$B$28,\"NumLig\",\">=\",TRUE)-2,0,Position_Dernier(E6*10/Note_Max,PA_EN_FR!$A$2:$A$28,\"NumLig\",\"<=\",TRUE)-Position_premier(E6*10/Note_Max,PA_EN_FR!$B$2:$B$28,\"NumLig\",\">=\")+1,1),\"NumLig\",\">=\",TRUE)-2,0,Position_Dernier(I6*10/Note_Max,OFFSET(PA_EN_FR!$C$2,Position_premier(E6*10/Note_Max,PA_EN_FR!$B$2:$B$28,\"NumLig\",\">=\",TRUE)-2,0,Position_Dernier(E6*10/Note_Max,PA_EN_FR!$A$2:$A$28,\"NumLig\",\"<=\",TRUE)-Position_premier(E6*10/Note_Max,PA_EN_FR!$B$2:$B$28,\"NumLig\",\">=\",TRUE)+1,1),\"NumLig\",\"<=\",TRUE)-Position_premier(I6*10/Note_Max,OFFSET(PA_EN_FR!$D$2,Position_premier(E6*10/Note_Max,PA_EN_FR!$B$2:$B$28,\"NumLig\",\">=\",TRUE)-2,0,Position_Dernier(E6*10/Note_Max,PA_EN_FR!$A$2:$A$28,\"NumLig\",\"<=\",TRUE)-Position_premier(E6*10/Note_Max,PA_EN_FR!$B$2:$B$28,\"NumLig\",\">=\",TRUE)+1,1),\"NumLig\",\">=\",TRUE)+1,1),\"NumLig\",\"<=\",TRUE))-1),\"\"),L6))))","v":0},null,null,null,0,null,null,0,null,null,""]
[6,null,null,null,null,{"$f":"IF(AND(E7>=Présentation!$I$43,I7>=Présentation!$J$43,K7>=Présentation!$K$43),\"CC\",IF(AND(E7>=Présentation!$P$43,I7>=Présentation!$Q$43,K7>=Présentation!$R$43),\"KC\",IF(AND(E7>=Présentation!$I$44,I7>=Présentation!$J$44,K7>=Présentation!$K$44),\"SC\",IF(AND(E7>=Présentation!$P$44,I7>=Présentation!$Q$44,K7>=Présentation!$R$44),\"PS\",\"\"))))","v":""},null,null,null,null,null,0,{"$f":"IF(Présentation!$D$44=\"IC\",E7*I7,IF(Présentation!$D$44=\"GO\",E7*10+I7,IF(Présentation!$D$44=\"GOD\",E7*100+I7*10+K7,IF(Présentation!$D$44=\"PA\",IFERROR(INDEX(PA_EN_FR!$H$2:$H$28,(Position_Dernier(K7*10/Note_Max,OFFSET(PA_EN_FR!$E$2,Position_premier(I7*10/Note_Max,OFFSET(PA_EN_FR!$D$2,Position_premier(E7*10/Note_Max,PA_EN_FR!$B$2:$B$28,\"NumLig\",\">=\",TRUE)-2,0,Position_Dernier(E7*10/Note_Max,PA_EN_FR!$A$2:$A$28,\"NumLig\",\"<=\",TRUE)-Position_premier(E7*10/Note_Max,PA_EN_FR!$B$2:$B$28,\"NumLig\",\">=\")+1,1),\"NumLig\",\">=\",TRUE)-2,0,Position_Dernier(I7*10/Note_Max,OFFSET(PA_EN_FR!$C$2,Position_premier(E7*10/Note_Max,PA_EN_FR!$B$2:$B$28,\"NumLig\",\">=\",TRUE)-2,0,Position_Dernier(E7*10/Note_Max,PA_EN_FR!$A$2:$A$28,\"NumLig\",\"<=\",TRUE)-Position_premier(E7*10/Note_Max,PA_EN_FR!$B$2:$B$28,\"NumLig\",\">=\",TRUE)+1,1),\"NumLig\",\"<=\",TRUE)-Position_premier(I7*10/Note_Max,OFFSET(PA_EN_FR!$D$2,Position_premier(E7*10/Note_Max,PA_EN_FR!$B$2:$B$28,\"NumLig\",\">=\",TRUE)-2,0,Position_Dernier(E7*10/Note_Max,PA_EN_FR!$A$2:$A$28,\"NumLig\",\"<=\",TRUE)-Position_premier(E7*10/Note_Max,PA_EN_FR!$B$2:$B$28,\"NumLig\",\">=\",TRUE)+1,1),\"NumLig\",\">=\",TRUE)+1,1),\"NumLig\",\"<=\",TRUE))-1),\"\"),L7))))","v":0},null,null,null,0,null,null,0,null,null,""]
[7,null,null,null,null,{"$f":"IF(AND(E8>=Présentation!$I$43,I8>=Présentation!$J$43,K8>=Présentation!$K$43),\"CC\",IF(AND(E8>=Présentation!$P$43,I8>=Présentation!$Q$43,K8>=Présentation!$R$43),\"KC\",IF(AND(E8>=Présentation!$I$44,I8>=Présentation!$J$44,K8>=Présentation!$K$44),\"SC\",IF(AND(E8>=Présentation!$P$44,I8>=Présentation!$Q$44,K8>=Présentation!$R$44),\"PS\",\"\"))))","v":""},null,null,null,null,null,0,{"$f":"IF(Présentation!$D$44=\"IC\",E8*I8,IF(Présentation!$D$44=\"GO\",E8*10+I8,IF(Présentation!$D$44=\"GOD\",E8*100+I8*10+K8,IF(Présentation!$D$44=\"PA\",IFERROR(INDEX(PA_EN_FR!$H$2:$H$28,(Position_Dernier(K8*10/Note_Max,OFFSET(PA_EN_FR!$E$2,Position_premier(I8*10/Note_Max,OFFSET(PA_EN_FR!$D$2,Position_premier(E8*10/Note_Max,PA_EN_FR!$B$2:$B$28,\"NumLig\",\">=\",TRUE)-2,0,Position_Dernier(E8*10/Note_Max,PA_EN_FR!$A$2:$A$28,\"NumLig\",\"<=\",TRUE)-Position_premier(E8*10/Note_Max,PA_EN_FR!$B$2:$B$28,\"NumLig\",\">=\")+1,1),\"NumLig\",\">=\",TRUE)-2,0,Position_Dernier(I8*10/Note_Max,OFFSET(PA_EN_FR!$C$2,Position_premier(E8*10/Note_Max,PA_EN_FR!$B$2:$B$28,\"NumLig\",\">=\",TRUE)-2,0,Position_Dernier(E8*10/Note_Max,PA_EN_FR!$A$2:$A$28,\"NumLig\",\"<=\",TRUE)-Position_premier(E8*10/Note_Max,PA_EN_FR!$B$2:$B$28,\"NumLig\",\">=\",TRUE)+1,1),\"NumLig\",\"<=\",TRUE)-Position_premier(I8*10/Note_Max,OFFSET(PA_EN_FR!$D$2,Position_premier(E8*10/Note_Max,PA_EN_FR!$B$2:$B$28,\"NumLig\",\">=\",TRUE)-2,0,Position_Dernier(E8*10/Note_Max,PA_EN_FR!$A$2:$A$28,\"NumLig\",\"<=\",TRUE)-Position_premier(E8*10/Note_Max,PA_EN_FR!$B$2:$B$28,\"NumLig\",\">=\",TRUE)+1,1),\"NumLig\",\">=\",TRUE)+1,1),\"NumLig\",\"<=\",TRUE))-1),\"\"),L8))))","v":0},null,null,null,0,null,null,0,null,null,""]
[8,null,null,null,null,{"$f":"IF(AND(E9>=Présentation!$I$43,I9>=Présentation!$J$43,K9>=Présentation!$K$43),\"CC\",IF(AND(E9>=Présentation!$P$43,I9>=Présentation!$Q$43,K9>=Présentation!$R$43),\"KC\",IF(AND(E9>=Présentation!$I$44,I9>=Présentation!$J$44,K9>=Présentation!$K$44),\"SC\",IF(AND(E9>=Présentation!$P$44,I9>=Présentation!$Q$44,K9>=Présentation!$R$44),\"PS\",\"\"))))","v":""},null,null,null,null,null,0,{"$f":"IF(Présentation!$D$44=\"IC\",E9*I9,IF(Présentation!$D$44=\"GO\",E9*10+I9,IF(Présentation!$D$44=\"GOD\",E9*100+I9*10+K9,IF(Présentation!$D$44=\"PA\",IFERROR(INDEX(PA_EN_FR!$H$2:$H$28,(Position_Dernier(K9*10/Note_Max,OFFSET(PA_EN_FR!$E$2,Position_premier(I9*10/Note_Max,OFFSET(PA_EN_FR!$D$2,Position_premier(E9*10/Note_Max,PA_EN_FR!$B$2:$B$28,\"NumLig\",\">=\",TRUE)-2,0,Position_Dernier(E9*10/Note_Max,PA_EN_FR!$A$2:$A$28,\"NumLig\",\"<=\",TRUE)-Position_premier(E9*10/Note_Max,PA_EN_FR!$B$2:$B$28,\"NumLig\",\">=\")+1,1),\"NumLig\",\">=\",TRUE)-2,0,Position_Dernier(I9*10/Note_Max,OFFSET(PA_EN_FR!$C$2,Position_premier(E9*10/Note_Max,PA_EN_FR!$B$2:$B$28,\"NumLig\",\">=\",TRUE)-2,0,Position_Dernier(E9*10/Note_Max,PA_EN_FR!$A$2:$A$28,\"NumLig\",\"<=\",TRUE)-Position_premier(E9*10/Note_Max,PA_EN_FR!$B$2:$B$28,\"NumLig\",\">=\",TRUE)+1,1),\"NumLig\",\"<=\",TRUE)-Position_premier(I9*10/Note_Max,OFFSET(PA_EN_FR!$D$2,Position_premier(E9*10/Note_Max,PA_EN_FR!$B$2:$B$28,\"NumLig\",\">=\",TRUE)-2,0,Position_Dernier(E9*10/Note_Max,PA_EN_FR!$A$2:$A$28,\"NumLig\",\"<=\",TRUE)-Position_premier(E9*10/Note_Max,PA_EN_FR!$B$2:$B$28,\"NumLig\",\">=\",TRUE)+1,1),\"NumLig\",\">=\",TRUE)+1,1),\"NumLig\",\"<=\",TRUE))-1),\"\"),L9))))","v":0},null,null,null,0,null,null,0,null,null,""]
[9,null,null,null,null,{"$f":"IF(AND(E10>=Présentation!$I$43,I10>=Présentation!$J$43,K10>=Présentation!$K$43),\"CC\",IF(AND(E10>=Présentation!$P$43,I10>=Présentation!$Q$43,K10>=Présentation!$R$43),\"KC\",IF(AND(E10>=Présentation!$I$44,I10>=Présentation!$J$44,K10>=Présentation!$K$44),\"SC\",IF(AND(E10>=Présentation!$P$44,I10>=Présentation!$Q$44,K10>=Présentation!$R$44),\"PS\",\"\"))))","v":""},null,null,null,null,null,0,{"$f":"IF(Présentation!$D$44=\"IC\",E10*I10,IF(Présentation!$D$44=\"GO\",E10*10+I10,IF(Présentation!$D$44=\"GOD\",E10*100+I10*10+K10,IF(Présentation!$D$44=\"PA\",IFERROR(INDEX(PA_EN_FR!$H$2:$H$28,(Position_Dernier(K10*10/Note_Max,OFFSET(PA_EN_FR!$E$2,Position_premier(I10*10/Note_Max,OFFSET(PA_EN_FR!$D$2,Position_premier(E10*10/Note_Max,PA_EN_FR!$B$2:$B$28,\"NumLig\",\">=\",TRUE)-2,0,Position_Dernier(E10*10/Note_Max,PA_EN_FR!$A$2:$A$28,\"NumLig\",\"<=\",TRUE)-Position_premier(E10*10/Note_Max,PA_EN_FR!$B$2:$B$28,\"NumLig\",\">=\")+1,1),\"NumLig\",\">=\",TRUE)-2,0,Position_Dernier(I10*10/Note_Max,OFFSET(PA_EN_FR!$C$2,Position_premier(E10*10/Note_Max,PA_EN_FR!$B$2:$B$28,\"NumLig\",\">=\",TRUE)-2,0,Position_Dernier(E10*10/Note_Max,PA_EN_FR!$A$2:$A$28,\"NumLig\",\"<=\",TRUE)-Position_premier(E10*10/Note_Max,PA_EN_FR!$B$2:$B$28,\"NumLig\",\">=\",TRUE)+1,1),\"NumLig\",\"<=\",TRUE)-Position_premier(I10*10/Note_Max,OFFSET(PA_EN_FR!$D$2,Position_premier(E10*10/Note_Max,PA_EN_FR!$B$2:$B$28,\"NumLig\",\">=\",TRUE)-2,0,Position_Dernier(E10*10/Note_Max,PA_EN_FR!$A$2:$A$28,\"NumLig\",\"<=\",TRUE)-Position_premier(E10*10/Note_Max,PA_EN_FR!$B$2:$B$28,\"NumLig\",\">=\",TRUE)+1,1),\"NumLig\",\">=\",TRUE)+1,1),\"NumLig\",\"<=\",TRUE))-1),\"\"),L10))))","v":0},null,null,null,0,null,null,0,null,null,""]
[10,null,null,null,null,{"$f":"IF(AND(E11>=Présentation!$I$43,I11>=Présentation!$J$43,K11>=Présentation!$K$43),\"CC\",IF(AND(E11>=Présentation!$P$43,I11>=Présentation!$Q$43,K11>=Présentation!$R$43),\"KC\",IF(AND(E11>=Présentation!$I$44,I11>=Présentation!$J$44,K11>=Présentation!$K$44),\"SC\",IF(AND(E11>=Présentation!$P$44,I11>=Présentation!$Q$44,K11>=Présentation!$R$44),\"PS\",\"\"))))","v":""},null,null,null,null,null,0,{"$f":"IF(Présentation!$D$44=\"IC\",E11*I11,IF(Présentation!$D$44=\"GO\",E11*10+I11,IF(Présentation!$D$44=\"GOD\",E11*100+I11*10+K11,IF(Présentation!$D$44=\"PA\",IFERROR(INDEX(PA_EN_FR!$H$2:$H$28,(Position_Dernier(K11*10/Note_Max,OFFSET(PA_EN_FR!$E$2,Position_premier(I11*10/Note_Max,OFFSET(PA_EN_FR!$D$2,Position_premier(E11*10/Note_Max,PA_EN_FR!$B$2:$B$28,\"NumLig\",\">=\",TRUE)-2,0,Position_Dernier(E11*10/Note_Max,PA_EN_FR!$A$2:$A$28,\"NumLig\",\"<=\",TRUE)-Position_premier(E11*10/Note_Max,PA_EN_FR!$B$2:$B$28,\"NumLig\",\">=\")+1,1),\"NumLig\",\">=\",TRUE)-2,0,Position_Dernier(I11*10/Note_Max,OFFSET(PA_EN_FR!$C$2,Position_premier(E11*10/Note_Max,PA_EN_FR!$B$2:$B$28,\"NumLig\",\">=\",TRUE)-2,0,Position_Dernier(E11*10/Note_Max,PA_EN_FR!$A$2:$A$28,\"NumLig\",\"<=\",TRUE)-Position_premier(E11*10/Note_Max,PA_EN_FR!$B$2:$B$28,\"NumLig\",\">=\",TRUE)+1,1),\"NumLig\",\"<=\",TRUE)-Position_premier(I11*10/Note_Max,OFFSET(PA_EN_FR!$D$2,Position_premier(E11*10/Note_Max,PA_EN_FR!$B$2:$B$28,\"NumLig\",\">=\",TRUE)-2,0,Position_Dernier(E11*10/Note_Max,PA_EN_FR!$A$2:$A$28,\"NumLig\",\"<=\",TRUE)-Position_premier(E11*10/Note_Max,PA_EN_FR!$B$2:$B$28,\"NumLig\",\">=\",TRUE)+1,1),\"NumLig\",\">=\",TRUE)+1,1),\"NumLig\",\"<=\",TRUE))-1),\"\"),L11))))","v":0},null,null,null,0,null,null,0,null,null,""]
[11,null,null,null,null,{"$f":"IF(AND(E12>=Présentation!$I$43,I12>=Présentation!$J$43,K12>=Présentation!$K$43),\"CC\",IF(AND(E12>=Présentation!$P$43,I12>=Présentation!$Q$43,K12>=Présentation!$R$43),\"KC\",IF(AND(E12>=Présentation!$I$44,I12>=Présentation!$J$44,K12>=Présentation!$K$44),\"SC\",IF(AND(E12>=Présentation!$P$44,I12>=Présentation!$Q$44,K12>=Présentation!$R$44),\"PS\",\"\"))))","v":""},null,null,null,null,null,0,{"$f":"IF(Présentation!$D$44=\"IC\",E12*I12,IF(Présentation!$D$44=\"GO\",E12*10+I12,IF(Présentation!$D$44=\"GOD\",E12*100+I12*10+K12,IF(Présentation!$D$44=\"PA\",IFERROR(INDEX(PA_EN_FR!$H$2:$H$28,(Position_Dernier(K12*10/Note_Max,OFFSET(PA_EN_FR!$E$2,Position_premier(I12*10/Note_Max,OFFSET(PA_EN_FR!$D$2,Position_premier(E12*10/Note_Max,PA_EN_FR!$B$2:$B$28,\"NumLig\",\">=\",TRUE)-2,0,Position_Dernier(E12*10/Note_Max,PA_EN_FR!$A$2:$A$28,\"NumLig\",\"<=\",TRUE)-Position_premier(E12*10/Note_Max,PA_EN_FR!$B$2:$B$28,\"NumLig\",\">=\")+1,1),\"NumLig\",\">=\",TRUE)-2,0,Position_Dernier(I12*10/Note_Max,OFFSET(PA_EN_FR!$C$2,Position_premier(E12*10/Note_Max,PA_EN_FR!$B$2:$B$28,\"NumLig\",\">=\",TRUE)-2,0,Position_Dernier(E12*10/Note_Max,PA_EN_FR!$A$2:$A$28,\"NumLig\",\"<=\",TRUE)-Position_premier(E12*10/Note_Max,PA_EN_FR!$B$2:$B$28,\"NumLig\",\">=\",TRUE)+1,1),\"NumLig\",\"<=\",TRUE)-Position_premier(I12*10/Note_Max,OFFSET(PA_EN_FR!$D$2,Position_premier(E12*10/Note_Max,PA_EN_FR!$B$2:$B$28,\"NumLig\",\">=\",TRUE)-2,0,Position_Dernier(E12*10/Note_Max,PA_EN_FR!$A$2:$A$28,\"NumLig\",\"<=\",TRUE)-Position_premier(E12*10/Note_Max,PA_EN_FR!$B$2:$B$28,\"NumLig\",\">=\",TRUE)+1,1),\"NumLig\",\">=\",TRUE)+1,1),\"NumLig\",\"<=\",TRUE))-1),\"\"),L12))))","v":0},null,null,null,0,null,null,0,null,null,""]
[12,null,null,null,null,{"$f":"IF(AND(E13>=Présentation!$I$43,I13>=Présentation!$J$43,K13>=Présentation!$K$43),\"CC\",IF(AND(E13>=Présentation!$P$43,I13>=Présentation!$Q$43,K13>=Présentation!$R$43),\"KC\",IF(AND(E13>=Présentation!$I$44,I13>=Présentation!$J$44,K13>=Présentation!$K$44),\"SC\",IF(AND(E13>=Présentation!$P$44,I13>=Présentation!$Q$44,K13>=Présentation!$R$44),\"PS\",\"\"))))","v":""},null,null,null,null,null,0,{"$f":"IF(Présentation!$D$44=\"IC\",E13*I13,IF(Présentation!$D$44=\"GO\",E13*10+I13,IF(Présentation!$D$44=\"GOD\",E13*100+I13*10+K13,IF(Présentation!$D$44=\"PA\",IFERROR(INDEX(PA_EN_FR!$H$2:$H$28,(Position_Dernier(K13*10/Note_Max,OFFSET(PA_EN_FR!$E$2,Position_premier(I13*10/Note_Max,OFFSET(PA_EN_FR!$D$2,Position_premier(E13*10/Note_Max,PA_EN_FR!$B$2:$B$28,\"NumLig\",\">=\",TRUE)-2,0,Position_Dernier(E13*10/Note_Max,PA_EN_FR!$A$2:$A$28,\"NumLig\",\"<=\",TRUE)-Position_premier(E13*10/Note_Max,PA_EN_FR!$B$2:$B$28,\"NumLig\",\">=\")+1,1),\"NumLig\",\">=\",TRUE)-2,0,Position_Dernier(I13*10/Note_Max,OFFSET(PA_EN_FR!$C$2,Position_premier(E13*10/Note_Max,PA_EN_FR!$B$2:$B$28,\"NumLig\",\">=\",TRUE)-2,0,Position_Dernier(E13*10/Note_Max,PA_EN_FR!$A$2:$A$28,\"NumLig\",\"<=\",TRUE)-Position_premier(E13*10/Note_Max,PA_EN_FR!$B$2:$B$28,\"NumLig\",\">=\",TRUE)+1,1),\"NumLig\",\"<=\",TRUE)-Position_premier(I13*10/Note_Max,OFFSET(PA_EN_FR!$D$2,Position_premier(E13*10/Note_Max,PA_EN_FR!$B$2:$B$28,\"NumLig\",\">=\",TRUE)-2,0,Position_Dernier(E13*10/Note_Max,PA_EN_FR!$A$2:$A$28,\"NumLig\",\"<=\",TRUE)-Position_premier(E13*10/Note_Max,PA_EN_FR!$B$2:$B$28,\"NumLig\",\">=\",TRUE)+1,1),\"NumLig\",\">=\",TRUE)+1,1),\"NumLig\",\"<=\",TRUE))-1),\"\"),L13))))","v":0},null,null,null,0,null,null,0,null,null,""]
[13,null,null,null,null,{"$f":"IF(AND(E14>=Présentation!$I$43,I14>=Présentation!$J$43,K14>=Présentation!$K$43),\"CC\",IF(AND(E14>=Présentation!$P$43,I14>=Présentation!$Q$43,K14>=Présentation!$R$43),\"KC\",IF(AND(E14>=Présentation!$I$44,I14>=Présentation!$J$44,K14>=Présentation!$K$44),\"SC\",IF(AND(E14>=Présentation!$P$44,I14>=Présentation!$Q$44,K14>=Présentation!$R$44),\"PS\",\"\"))))","v":""},null,null,null,null,null,0,{"$f":"IF(Présentation!$D$44=\"IC\",E14*I14,IF(Présentation!$D$44=\"GO\",E14*10+I14,IF(Présentation!$D$44=\"GOD\",E14*100+I14*10+K14,IF(Présentation!$D$44=\"PA\",IFERROR(INDEX(PA_EN_FR!$H$2:$H$28,(Position_Dernier(K14*10/Note_Max,OFFSET(PA_EN_FR!$E$2,Position_premier(I14*10/Note_Max,OFFSET(PA_EN_FR!$D$2,Position_premier(E14*10/Note_Max,PA_EN_FR!$B$2:$B$28,\"NumLig\",\">=\",TRUE)-2,0,Position_Dernier(E14*10/Note_Max,PA_EN_FR!$A$2:$A$28,\"NumLig\",\"<=\",TRUE)-Position_premier(E14*10/Note_Max,PA_EN_FR!$B$2:$B$28,\"NumLig\",\">=\")+1,1),\"NumLig\",\">=\",TRUE)-2,0,Position_Dernier(I14*10/Note_Max,OFFSET(PA_EN_FR!$C$2,Position_premier(E14*10/Note_Max,PA_EN_FR!$B$2:$B$28,\"NumLig\",\">=\",TRUE)-2,0,Position_Dernier(E14*10/Note_Max,PA_EN_FR!$A$2:$A$28,\"NumLig\",\"<=\",TRUE)-Position_premier(E14*10/Note_Max,PA_EN_FR!$B$2:$B$28,\"NumLig\",\">=\",TRUE)+1,1),\"NumLig\",\"<=\",TRUE)-Position_premier(I14*10/Note_Max,OFFSET(PA_EN_FR!$D$2,Position_premier(E14*10/Note_Max,PA_EN_FR!$B$2:$B$28,\"NumLig\",\">=\",TRUE)-2,0,Position_Dernier(E14*10/Note_Max,PA_EN_FR!$A$2:$A$28,\"NumLig\",\"<=\",TRUE)-Position_premier(E14*10/Note_Max,PA_EN_FR!$B$2:$B$28,\"NumLig\",\">=\",TRUE)+1,1),\"NumLig\",\">=\",TRUE)+1,1),\"NumLig\",\"<=\",TRUE))-1),\"\"),L14))))","v":0},null,null,null,0,null,null,0,null,null,""]
[14,null,null,null,null,{"$f":"IF(AND(E15>=Présentation!$I$43,I15>=Présentation!$J$43,K15>=Présentation!$K$43),\"CC\",IF(AND(E15>=Présentation!$P$43,I15>=Présentation!$Q$43,K15>=Présentation!$R$43),\"KC\",IF(AND(E15>=Présentation!$I$44,I15>=Présentation!$J$44,K15>=Présentation!$K$44),\"SC\",IF(AND(E15>=Présentation!$P$44,I15>=Présentation!$Q$44,K15>=Présentation!$R$44),\"PS\",\"\"))))","v":""},null,null,null,null,null,0,{"$f":"IF(Présentation!$D$44=\"IC\",E15*I15,IF(Présentation!$D$44=\"GO\",E15*10+I15,IF(Présentation!$D$44=\"GOD\",E15*100+I15*10+K15,IF(Présentation!$D$44=\"PA\",IFERROR(INDEX(PA_EN_FR!$H$2:$H$28,(Position_Dernier(K15*10/Note_Max,OFFSET(PA_EN_FR!$E$2,Position_premier(I15*10/Note_Max,OFFSET(PA_EN_FR!$D$2,Position_premier(E15*10/Note_Max,PA_EN_FR!$B$2:$B$28,\"NumLig\",\">=\",TRUE)-2,0,Position_Dernier(E15*10/Note_Max,PA_EN_FR!$A$2:$A$28,\"NumLig\",\"<=\",TRUE)-Position_premier(E15*10/Note_Max,PA_EN_FR!$B$2:$B$28,\"NumLig\",\">=\")+1,1),\"NumLig\",\">=\",TRUE)-2,0,Position_Dernier(I15*10/Note_Max,OFFSET(PA_EN_FR!$C$2,Position_premier(E15*10/Note_Max,PA_EN_FR!$B$2:$B$28,\"NumLig\",\">=\",TRUE)-2,0,Position_Dernier(E15*10/Note_Max,PA_EN_FR!$A$2:$A$28,\"NumLig\",\"<=\",TRUE)-Position_premier(E15*10/Note_Max,PA_EN_FR!$B$2:$B$28,\"NumLig\",\">=\",TRUE)+1,1),\"NumLig\",\"<=\",TRUE)-Position_premier(I15*10/Note_Max,OFFSET(PA_EN_FR!$D$2,Position_premier(E15*10/Note_Max,PA_EN_FR!$B$2:$B$28,\"NumLig\",\">=\",TRUE)-2,0,Position_Dernier(E15*10/Note_Max,PA_EN_FR!$A$2:$A$28,\"NumLig\",\"<=\",TRUE)-Position_premier(E15*10/Note_Max,PA_EN_FR!$B$2:$B$28,\"NumLig\",\">=\",TRUE)+1,1),\"NumLig\",\">=\",TRUE)+1,1),\"NumLig\",\"<=\",TRUE))-1),\"\"),L15))))","v":0},null,null,null,0,null,null,0,null,null,""]
[15,null,null,null,null,{"$f":"IF(AND(E16>=Présentation!$I$43,I16>=Présentation!$J$43,K16>=Présentation!$K$43),\"CC\",IF(AND(E16>=Présentation!$P$43,I16>=Présentation!$Q$43,K16>=Présentation!$R$43),\"KC\",IF(AND(E16>=Présentation!$I$44,I16>=Présentation!$J$44,K16>=Présentation!$K$44),\"SC\",IF(AND(E16>=Présentation!$P$44,I16>=Présentation!$Q$44,K16>=Présentation!$R$44),\"PS\",\"\"))))","v":""},null,null,null,null,null,0,{"$f":"IF(Présentation!$D$44=\"IC\",E16*I16,IF(Présentation!$D$44=\"GO\",E16*10+I16,IF(Présentation!$D$44=\"GOD\",E16*100+I16*10+K16,IF(Présentation!$D$44=\"PA\",IFERROR(INDEX(PA_EN_FR!$H$2:$H$28,(Position_Dernier(K16*10/Note_Max,OFFSET(PA_EN_FR!$E$2,Position_premier(I16*10/Note_Max,OFFSET(PA_EN_FR!$D$2,Position_premier(E16*10/Note_Max,PA_EN_FR!$B$2:$B$28,\"NumLig\",\">=\",TRUE)-2,0,Position_Dernier(E16*10/Note_Max,PA_EN_FR!$A$2:$A$28,\"NumLig\",\"<=\",TRUE)-Position_premier(E16*10/Note_Max,PA_EN_FR!$B$2:$B$28,\"NumLig\",\">=\")+1,1),\"NumLig\",\">=\",TRUE)-2,0,Position_Dernier(I16*10/Note_Max,OFFSET(PA_EN_FR!$C$2,Position_premier(E16*10/Note_Max,PA_EN_FR!$B$2:$B$28,\"NumLig\",\">=\",TRUE)-2,0,Position_Dernier(E16*10/Note_Max,PA_EN_FR!$A$2:$A$28,\"NumLig\",\"<=\",TRUE)-Position_premier(E16*10/Note_Max,PA_EN_FR!$B$2:$B$28,\"NumLig\",\">=\",TRUE)+1,1),\"NumLig\",\"<=\",TRUE)-Position_premier(I16*10/Note_Max,OFFSET(PA_EN_FR!$D$2,Position_premier(E16*10/Note_Max,PA_EN_FR!$B$2:$B$28,\"NumLig\",\">=\",TRUE)-2,0,Position_Dernier(E16*10/Note_Max,PA_EN_FR!$A$2:$A$28,\"NumLig\",\"<=\",TRUE)-Position_premier(E16*10/Note_Max,PA_EN_FR!$B$2:$B$28,\"NumLig\",\">=\",TRUE)+1,1),\"NumLig\",\">=\",TRUE)+1,1),\"NumLig\",\"<=\",TRUE))-1),\"\"),L16))))","v":0},null,null,null,0,null,null,0,null,null,""]
[16,null,null,null,null,{"$f":"IF(AND(E17>=Présentation!$I$43,I17>=Présentation!$J$43,K17>=Présentation!$K$43),\"CC\",IF(AND(E17>=Présentation!$P$43,I17>=Présentation!$Q$43,K17>=Présentation!$R$43),\"KC\",IF(AND(E17>=Présentation!$I$44,I17>=Présentation!$J$44,K17>=Présentation!$K$44),\"SC\",IF(AND(E17>=Présentation!$P$44,I17>=Présentation!$Q$44,K17>=Présentation!$R$44),\"PS\",\"\"))))","v":""},null,null,null,null,null,0,{"$f":"IF(Présentation!$D$44=\"IC\",E17*I17,IF(Présentation!$D$44=\"GO\",E17*10+I17,IF(Présentation!$D$44=\"GOD\",E17*100+I17*10+K17,IF(Présentation!$D$44=\"PA\",IFERROR(INDEX(PA_EN_FR!$H$2:$H$28,(Position_Dernier(K17*10/Note_Max,OFFSET(PA_EN_FR!$E$2,Position_premier(I17*10/Note_Max,OFFSET(PA_EN_FR!$D$2,Position_premier(E17*10/Note_Max,PA_EN_FR!$B$2:$B$28,\"NumLig\",\">=\",TRUE)-2,0,Position_Dernier(E17*10/Note_Max,PA_EN_FR!$A$2:$A$28,\"NumLig\",\"<=\",TRUE)-Position_premier(E17*10/Note_Max,PA_EN_FR!$B$2:$B$28,\"NumLig\",\">=\")+1,1),\"NumLig\",\">=\",TRUE)-2,0,Position_Dernier(I17*10/Note_Max,OFFSET(PA_EN_FR!$C$2,Position_premier(E17*10/Note_Max,PA_EN_FR!$B$2:$B$28,\"NumLig\",\">=\",TRUE)-2,0,Position_Dernier(E17*10/Note_Max,PA_EN_FR!$A$2:$A$28,\"NumLig\",\"<=\",TRUE)-Position_premier(E17*10/Note_Max,PA_EN_FR!$B$2:$B$28,\"NumLig\",\">=\",TRUE)+1,1),\"NumLig\",\"<=\",TRUE)-Position_premier(I17*10/Note_Max,OFFSET(PA_EN_FR!$D$2,Position_premier(E17*10/Note_Max,PA_EN_FR!$B$2:$B$28,\"NumLig\",\">=\",TRUE)-2,0,Position_Dernier(E17*10/Note_Max,PA_EN_FR!$A$2:$A$28,\"NumLig\",\"<=\",TRUE)-Position_premier(E17*10/Note_Max,PA_EN_FR!$B$2:$B$28,\"NumLig\",\">=\",TRUE)+1,1),\"NumLig\",\">=\",TRUE)+1,1),\"NumLig\",\"<=\",TRUE))-1),\"\"),L17))))","v":0},null,null,null,0,null,null,0,null,null,""]
[17,null,null,null,null,{"$f":"IF(AND(E18>=Présentation!$I$43,I18>=Présentation!$J$43,K18>=Présentation!$K$43),\"CC\",IF(AND(E18>=Présentation!$P$43,I18>=Présentation!$Q$43,K18>=Présentation!$R$43),\"KC\",IF(AND(E18>=Présentation!$I$44,I18>=Présentation!$J$44,K18>=Présentation!$K$44),\"SC\",IF(AND(E18>=Présentation!$P$44,I18>=Présentation!$Q$44,K18>=Présentation!$R$44),\"PS\",\"\"))))","v":""},null,null,null,null,null,0,{"$f":"IF(Présentation!$D$44=\"IC\",E18*I18,IF(Présentation!$D$44=\"GO\",E18*10+I18,IF(Présentation!$D$44=\"GOD\",E18*100+I18*10+K18,IF(Présentation!$D$44=\"PA\",IFERROR(INDEX(PA_EN_FR!$H$2:$H$28,(Position_Dernier(K18*10/Note_Max,OFFSET(PA_EN_FR!$E$2,Position_premier(I18*10/Note_Max,OFFSET(PA_EN_FR!$D$2,Position_premier(E18*10/Note_Max,PA_EN_FR!$B$2:$B$28,\"NumLig\",\">=\",TRUE)-2,0,Position_Dernier(E18*10/Note_Max,PA_EN_FR!$A$2:$A$28,\"NumLig\",\"<=\",TRUE)-Position_premier(E18*10/Note_Max,PA_EN_FR!$B$2:$B$28,\"NumLig\",\">=\")+1,1),\"NumLig\",\">=\",TRUE)-2,0,Position_Dernier(I18*10/Note_Max,OFFSET(PA_EN_FR!$C$2,Position_premier(E18*10/Note_Max,PA_EN_FR!$B$2:$B$28,\"NumLig\",\">=\",TRUE)-2,0,Position_Dernier(E18*10/Note_Max,PA_EN_FR!$A$2:$A$28,\"NumLig\",\"<=\",TRUE)-Position_premier(E18*10/Note_Max,PA_EN_FR!$B$2:$B$28,\"NumLig\",\">=\",TRUE)+1,1),\"NumLig\",\"<=\",TRUE)-Position_premier(I18*10/Note_Max,OFFSET(PA_EN_FR!$D$2,Position_premier(E18*10/Note_Max,PA_EN_FR!$B$2:$B$28,\"NumLig\",\">=\",TRUE)-2,0,Position_Dernier(E18*10/Note_Max,PA_EN_FR!$A$2:$A$28,\"NumLig\",\"<=\",TRUE)-Position_premier(E18*10/Note_Max,PA_EN_FR!$B$2:$B$28,\"NumLig\",\">=\",TRUE)+1,1),\"NumLig\",\">=\",TRUE)+1,1),\"NumLig\",\"<=\",TRUE))-1),\"\"),L18))))","v":0},null,null,null,0,null,null,0,null,null,""]
[18,null,null,null,null,{"$f":"IF(AND(E19>=Présentation!$I$43,I19>=Présentation!$J$43,K19>=Présentation!$K$43),\"CC\",IF(AND(E19>=Présentation!$P$43,I19>=Présentation!$Q$43,K19>=Présentation!$R$43),\"KC\",IF(AND(E19>=Présentation!$I$44,I19>=Présentation!$J$44,K19>=Présentation!$K$44),\"SC\",IF(AND(E19>=Présentation!$P$44,I19>=Présentation!$Q$44,K19>=Présentation!$R$44),\"PS\",\"\"))))","v":""},null,null,null,null,null,0,{"$f":"IF(Présentation!$D$44=\"IC\",E19*I19,IF(Présentation!$D$44=\"GO\",E19*10+I19,IF(Présentation!$D$44=\"GOD\",E19*100+I19*10+K19,IF(Présentation!$D$44=\"PA\",IFERROR(INDEX(PA_EN_FR!$H$2:$H$28,(Position_Dernier(K19*10/Note_Max,OFFSET(PA_EN_FR!$E$2,Position_premier(I19*10/Note_Max,OFFSET(PA_EN_FR!$D$2,Position_premier(E19*10/Note_Max,PA_EN_FR!$B$2:$B$28,\"NumLig\",\">=\",TRUE)-2,0,Position_Dernier(E19*10/Note_Max,PA_EN_FR!$A$2:$A$28,\"NumLig\",\"<=\",TRUE)-Position_premier(E19*10/Note_Max,PA_EN_FR!$B$2:$B$28,\"NumLig\",\">=\")+1,1),\"NumLig\",\">=\",TRUE)-2,0,Position_Dernier(I19*10/Note_Max,OFFSET(PA_EN_FR!$C$2,Position_premier(E19*10/Note_Max,PA_EN_FR!$B$2:$B$28,\"NumLig\",\">=\",TRUE)-2,0,Position_Dernier(E19*10/Note_Max,PA_EN_FR!$A$2:$A$28,\"NumLig\",\"<=\",TRUE)-Position_premier(E19*10/Note_Max,PA_EN_FR!$B$2:$B$28,\"NumLig\",\">=\",TRUE)+1,1),\"NumLig\",\"<=\",TRUE)-Position_premier(I19*10/Note_Max,OFFSET(PA_EN_FR!$D$2,Position_premier(E19*10/Note_Max,PA_EN_FR!$B$2:$B$28,\"NumLig\",\">=\",TRUE)-2,0,Position_Dernier(E19*10/Note_Max,PA_EN_FR!$A$2:$A$28,\"NumLig\",\"<=\",TRUE)-Position_premier(E19*10/Note_Max,PA_EN_FR!$B$2:$B$28,\"NumLig\",\">=\",TRUE)+1,1),\"NumLig\",\">=\",TRUE)+1,1),\"NumLig\",\"<=\",TRUE))-1),\"\"),L19))))","v":0},null,null,null,0,null,null,0,null,null,""]
[19,null,null,null,null,{"$f":"IF(AND(E20>=Présentation!$I$43,I20>=Présentation!$J$43,K20>=Présentation!$K$43),\"CC\",IF(AND(E20>=Présentation!$P$43,I20>=Présentation!$Q$43,K20>=Présentation!$R$43),\"KC\",IF(AND(E20>=Présentation!$I$44,I20>=Présentation!$J$44,K20>=Présentation!$K$44),\"SC\",IF(AND(E20>=Présentation!$P$44,I20>=Présentation!$Q$44,K20>=Présentation!$R$44),\"PS\",\"\"))))","v":""},null,null,null,null,null,0,{"$f":"IF(Présentation!$D$44=\"IC\",E20*I20,IF(Présentation!$D$44=\"GO\",E20*10+I20,IF(Présentation!$D$44=\"GOD\",E20*100+I20*10+K20,IF(Présentation!$D$44=\"PA\",IFERROR(INDEX(PA_EN_FR!$H$2:$H$28,(Position_Dernier(K20*10/Note_Max,OFFSET(PA_EN_FR!$E$2,Position_premier(I20*10/Note_Max,OFFSET(PA_EN_FR!$D$2,Position_premier(E20*10/Note_Max,PA_EN_FR!$B$2:$B$28,\"NumLig\",\">=\",TRUE)-2,0,Position_Dernier(E20*10/Note_Max,PA_EN_FR!$A$2:$A$28,\"NumLig\",\"<=\",TRUE)-Position_premier(E20*10/Note_Max,PA_EN_FR!$B$2:$B$28,\"NumLig\",\">=\")+1,1),\"NumLig\",\">=\",TRUE)-2,0,Position_Dernier(I20*10/Note_Max,OFFSET(PA_EN_FR!$C$2,Position_premier(E20*10/Note_Max,PA_EN_FR!$B$2:$B$28,\"NumLig\",\">=\",TRUE)-2,0,Position_Dernier(E20*10/Note_Max,PA_EN_FR!$A$2:$A$28,\"NumLig\",\"<=\",TRUE)-Position_premier(E20*10/Note_Max,PA_EN_FR!$B$2:$B$28,\"NumLig\",\">=\",TRUE)+1,1),\"NumLig\",\"<=\",TRUE)-Position_premier(I20*10/Note_Max,OFFSET(PA_EN_FR!$D$2,Position_premier(E20*10/Note_Max,PA_EN_FR!$B$2:$B$28,\"NumLig\",\">=\",TRUE)-2,0,Position_Dernier(E20*10/Note_Max,PA_EN_FR!$A$2:$A$28,\"NumLig\",\"<=\",TRUE)-Position_premier(E20*10/Note_Max,PA_EN_FR!$B$2:$B$28,\"NumLig\",\">=\",TRUE)+1,1),\"NumLig\",\">=\",TRUE)+1,1),\"NumLig\",\"<=\",TRUE))-1),\"\"),L20))))","v":0},null,null,null,0,null,null,0,null,null,""]
[20,null,null,null,null,{"$f":"IF(AND(E21>=Présentation!$I$43,I21>=Présentation!$J$43,K21>=Présentation!$K$43),\"CC\",IF(AND(E21>=Présentation!$P$43,I21>=Présentation!$Q$43,K21>=Présentation!$R$43),\"KC\",IF(AND(E21>=Présentation!$I$44,I21>=Présentation!$J$44,K21>=Présentation!$K$44),\"SC\",IF(AND(E21>=Présentation!$P$44,I21>=Présentation!$Q$44,K21>=Présentation!$R$44),\"PS\",\"\"))))","v":""},null,null,null,null,null,0,{"$f":"IF(Présentation!$D$44=\"IC\",E21*I21,IF(Présentation!$D$44=\"GO\",E21*10+I21,IF(Présentation!$D$44=\"GOD\",E21*100+I21*10+K21,IF(Présentation!$D$44=\"PA\",IFERROR(INDEX(PA_EN_FR!$H$2:$H$28,(Position_Dernier(K21*10/Note_Max,OFFSET(PA_EN_FR!$E$2,Position_premier(I21*10/Note_Max,OFFSET(PA_EN_FR!$D$2,Position_premier(E21*10/Note_Max,PA_EN_FR!$B$2:$B$28,\"NumLig\",\">=\",TRUE)-2,0,Position_Dernier(E21*10/Note_Max,PA_EN_FR!$A$2:$A$28,\"NumLig\",\"<=\",TRUE)-Position_premier(E21*10/Note_Max,PA_EN_FR!$B$2:$B$28,\"NumLig\",\">=\")+1,1),\"NumLig\",\">=\",TRUE)-2,0,Position_Dernier(I21*10/Note_Max,OFFSET(PA_EN_FR!$C$2,Position_premier(E21*10/Note_Max,PA_EN_FR!$B$2:$B$28,\"NumLig\",\">=\",TRUE)-2,0,Position_Dernier(E21*10/Note_Max,PA_EN_FR!$A$2:$A$28,\"NumLig\",\"<=\",TRUE)-Position_premier(E21*10/Note_Max,PA_EN_FR!$B$2:$B$28,\"NumLig\",\">=\",TRUE)+1,1),\"NumLig\",\"<=\",TRUE)-Position_premier(I21*10/Note_Max,OFFSET(PA_EN_FR!$D$2,Position_premier(E21*10/Note_Max,PA_EN_FR!$B$2:$B$28,\"NumLig\",\">=\",TRUE)-2,0,Position_Dernier(E21*10/Note_Max,PA_EN_FR!$A$2:$A$28,\"NumLig\",\"<=\",TRUE)-Position_premier(E21*10/Note_Max,PA_EN_FR!$B$2:$B$28,\"NumLig\",\">=\",TRUE)+1,1),\"NumLig\",\">=\",TRUE)+1,1),\"NumLig\",\"<=\",TRUE))-1),\"\"),L21))))","v":0},null,null,null,0,null,null,0,null,null,""]
[21,null,null,null,null,{"$f":"IF(AND(E22>=Présentation!$I$43,I22>=Présentation!$J$43,K22>=Présentation!$K$43),\"CC\",IF(AND(E22>=Présentation!$P$43,I22>=Présentation!$Q$43,K22>=Présentation!$R$43),\"KC\",IF(AND(E22>=Présentation!$I$44,I22>=Présentation!$J$44,K22>=Présentation!$K$44),\"SC\",IF(AND(E22>=Présentation!$P$44,I22>=Présentation!$Q$44,K22>=Présentation!$R$44),\"PS\",\"\"))))","v":""},null,null,null,null,null,0,{"$f":"IF(Présentation!$D$44=\"IC\",E22*I22,IF(Présentation!$D$44=\"GO\",E22*10+I22,IF(Présentation!$D$44=\"GOD\",E22*100+I22*10+K22,IF(Présentation!$D$44=\"PA\",IFERROR(INDEX(PA_EN_FR!$H$2:$H$28,(Position_Dernier(K22*10/Note_Max,OFFSET(PA_EN_FR!$E$2,Position_premier(I22*10/Note_Max,OFFSET(PA_EN_FR!$D$2,Position_premier(E22*10/Note_Max,PA_EN_FR!$B$2:$B$28,\"NumLig\",\">=\",TRUE)-2,0,Position_Dernier(E22*10/Note_Max,PA_EN_FR!$A$2:$A$28,\"NumLig\",\"<=\",TRUE)-Position_premier(E22*10/Note_Max,PA_EN_FR!$B$2:$B$28,\"NumLig\",\">=\")+1,1),\"NumLig\",\">=\",TRUE)-2,0,Position_Dernier(I22*10/Note_Max,OFFSET(PA_EN_FR!$C$2,Position_premier(E22*10/Note_Max,PA_EN_FR!$B$2:$B$28,\"NumLig\",\">=\",TRUE)-2,0,Position_Dernier(E22*10/Note_Max,PA_EN_FR!$A$2:$A$28,\"NumLig\",\"<=\",TRUE)-Position_premier(E22*10/Note_Max,PA_EN_FR!$B$2:$B$28,\"NumLig\",\">=\",TRUE)+1,1),\"NumLig\",\"<=\",TRUE)-Position_premier(I22*10/Note_Max,OFFSET(PA_EN_FR!$D$2,Position_premier(E22*10/Note_Max,PA_EN_FR!$B$2:$B$28,\"NumLig\",\">=\",TRUE)-2,0,Position_Dernier(E22*10/Note_Max,PA_EN_FR!$A$2:$A$28,\"NumLig\",\"<=\",TRUE)-Position_premier(E22*10/Note_Max,PA_EN_FR!$B$2:$B$28,\"NumLig\",\">=\",TRUE)+1,1),\"NumLig\",\">=\",TRUE)+1,1),\"NumLig\",\"<=\",TRUE))-1),\"\"),L22))))","v":0},null,null,null,0,null,null,0,null,null,""]
[22,null,null,null,null,{"$f":"IF(AND(E23>=Présentation!$I$43,I23>=Présentation!$J$43,K23>=Présentation!$K$43),\"CC\",IF(AND(E23>=Présentation!$P$43,I23>=Présentation!$Q$43,K23>=Présentation!$R$43),\"KC\",IF(AND(E23>=Présentation!$I$44,I23>=Présentation!$J$44,K23>=Présentation!$K$44),\"SC\",IF(AND(E23>=Présentation!$P$44,I23>=Présentation!$Q$44,K23>=Présentation!$R$44),\"PS\",\"\"))))","v":""},null,null,null,null,null,0,{"$f":"IF(Présentation!$D$44=\"IC\",E23*I23,IF(Présentation!$D$44=\"GO\",E23*10+I23,IF(Présentation!$D$44=\"GOD\",E23*100+I23*10+K23,IF(Présentation!$D$44=\"PA\",IFERROR(INDEX(PA_EN_FR!$H$2:$H$28,(Position_Dernier(K23*10/Note_Max,OFFSET(PA_EN_FR!$E$2,Position_premier(I23*10/Note_Max,OFFSET(PA_EN_FR!$D$2,Position_premier(E23*10/Note_Max,PA_EN_FR!$B$2:$B$28,\"NumLig\",\">=\",TRUE)-2,0,Position_Dernier(E23*10/Note_Max,PA_EN_FR!$A$2:$A$28,\"NumLig\",\"<=\",TRUE)-Position_premier(E23*10/Note_Max,PA_EN_FR!$B$2:$B$28,\"NumLig\",\">=\")+1,1),\"NumLig\",\">=\",TRUE)-2,0,Position_Dernier(I23*10/Note_Max,OFFSET(PA_EN_FR!$C$2,Position_premier(E23*10/Note_Max,PA_EN_FR!$B$2:$B$28,\"NumLig\",\">=\",TRUE)-2,0,Position_Dernier(E23*10/Note_Max,PA_EN_FR!$A$2:$A$28,\"NumLig\",\"<=\",TRUE)-Position_premier(E23*10/Note_Max,PA_EN_FR!$B$2:$B$28,\"NumLig\",\">=\",TRUE)+1,1),\"NumLig\",\"<=\",TRUE)-Position_premier(I23*10/Note_Max,OFFSET(PA_EN_FR!$D$2,Position_premier(E23*10/Note_Max,PA_EN_FR!$B$2:$B$28,\"NumLig\",\">=\",TRUE)-2,0,Position_Dernier(E23*10/Note_Max,PA_EN_FR!$A$2:$A$28,\"NumLig\",\"<=\",TRUE)-Position_premier(E23*10/Note_Max,PA_EN_FR!$B$2:$B$28,\"NumLig\",\">=\",TRUE)+1,1),\"NumLig\",\">=\",TRUE)+1,1),\"NumLig\",\"<=\",TRUE))-1),\"\"),L23))))","v":0},null,null,null,0,null,null,0,null,null,""]
[23,null,null,null,null,{"$f":"IF(AND(E24>=Présentation!$I$43,I24>=Présentation!$J$43,K24>=Présentation!$K$43),\"CC\",IF(AND(E24>=Présentation!$P$43,I24>=Présentation!$Q$43,K24>=Présentation!$R$43),\"KC\",IF(AND(E24>=Présentation!$I$44,I24>=Présentation!$J$44,K24>=Présentation!$K$44),\"SC\",IF(AND(E24>=Présentation!$P$44,I24>=Présentation!$Q$44,K24>=Présentation!$R$44),\"PS\",\"\"))))","v":""},null,null,null,null,null,0,{"$f":"IF(Présentation!$D$44=\"IC\",E24*I24,IF(Présentation!$D$44=\"GO\",E24*10+I24,IF(Présentation!$D$44=\"GOD\",E24*100+I24*10+K24,IF(Présentation!$D$44=\"PA\",IFERROR(INDEX(PA_EN_FR!$H$2:$H$28,(Position_Dernier(K24*10/Note_Max,OFFSET(PA_EN_FR!$E$2,Position_premier(I24*10/Note_Max,OFFSET(PA_EN_FR!$D$2,Position_premier(E24*10/Note_Max,PA_EN_FR!$B$2:$B$28,\"NumLig\",\">=\",TRUE)-2,0,Position_Dernier(E24*10/Note_Max,PA_EN_FR!$A$2:$A$28,\"NumLig\",\"<=\",TRUE)-Position_premier(E24*10/Note_Max,PA_EN_FR!$B$2:$B$28,\"NumLig\",\">=\")+1,1),\"NumLig\",\">=\",TRUE)-2,0,Position_Dernier(I24*10/Note_Max,OFFSET(PA_EN_FR!$C$2,Position_premier(E24*10/Note_Max,PA_EN_FR!$B$2:$B$28,\"NumLig\",\">=\",TRUE)-2,0,Position_Dernier(E24*10/Note_Max,PA_EN_FR!$A$2:$A$28,\"NumLig\",\"<=\",TRUE)-Position_premier(E24*10/Note_Max,PA_EN_FR!$B$2:$B$28,\"NumLig\",\">=\",TRUE)+1,1),\"NumLig\",\"<=\",TRUE)-Position_premier(I24*10/Note_Max,OFFSET(PA_EN_FR!$D$2,Position_premier(E24*10/Note_Max,PA_EN_FR!$B$2:$B$28,\"NumLig\",\">=\",TRUE)-2,0,Position_Dernier(E24*10/Note_Max,PA_EN_FR!$A$2:$A$28,\"NumLig\",\"<=\",TRUE)-Position_premier(E24*10/Note_Max,PA_EN_FR!$B$2:$B$28,\"NumLig\",\">=\",TRUE)+1,1),\"NumLig\",\">=\",TRUE)+1,1),\"NumLig\",\"<=\",TRUE))-1),\"\"),L24))))","v":0},null,null,null,0,null,null,0,null,null,""]
[24,null,null,null,null,{"$f":"IF(AND(E25>=Présentation!$I$43,I25>=Présentation!$J$43,K25>=Présentation!$K$43),\"CC\",IF(AND(E25>=Présentation!$P$43,I25>=Présentation!$Q$43,K25>=Présentation!$R$43),\"KC\",IF(AND(E25>=Présentation!$I$44,I25>=Présentation!$J$44,K25>=Présentation!$K$44),\"SC\",IF(AND(E25>=Présentation!$P$44,I25>=Présentation!$Q$44,K25>=Présentation!$R$44),\"PS\",\"\"))))","v":""},null,null,null,null,null,0,{"$f":"IF(Présentation!$D$44=\"IC\",E25*I25,IF(Présentation!$D$44=\"GO\",E25*10+I25,IF(Présentation!$D$44=\"GOD\",E25*100+I25*10+K25,IF(Présentation!$D$44=\"PA\",IFERROR(INDEX(PA_EN_FR!$H$2:$H$28,(Position_Dernier(K25*10/Note_Max,OFFSET(PA_EN_FR!$E$2,Position_premier(I25*10/Note_Max,OFFSET(PA_EN_FR!$D$2,Position_premier(E25*10/Note_Max,PA_EN_FR!$B$2:$B$28,\"NumLig\",\">=\",TRUE)-2,0,Position_Dernier(E25*10/Note_Max,PA_EN_FR!$A$2:$A$28,\"NumLig\",\"<=\",TRUE)-Position_premier(E25*10/Note_Max,PA_EN_FR!$B$2:$B$28,\"NumLig\",\">=\")+1,1),\"NumLig\",\">=\",TRUE)-2,0,Position_Dernier(I25*10/Note_Max,OFFSET(PA_EN_FR!$C$2,Position_premier(E25*10/Note_Max,PA_EN_FR!$B$2:$B$28,\"NumLig\",\">=\",TRUE)-2,0,Position_Dernier(E25*10/Note_Max,PA_EN_FR!$A$2:$A$28,\"NumLig\",\"<=\",TRUE)-Position_premier(E25*10/Note_Max,PA_EN_FR!$B$2:$B$28,\"NumLig\",\">=\",TRUE)+1,1),\"NumLig\",\"<=\",TRUE)-Position_premier(I25*10/Note_Max,OFFSET(PA_EN_FR!$D$2,Position_premier(E25*10/Note_Max,PA_EN_FR!$B$2:$B$28,\"NumLig\",\">=\",TRUE)-2,0,Position_Dernier(E25*10/Note_Max,PA_EN_FR!$A$2:$A$28,\"NumLig\",\"<=\",TRUE)-Position_premier(E25*10/Note_Max,PA_EN_FR!$B$2:$B$28,\"NumLig\",\">=\",TRUE)+1,1),\"NumLig\",\">=\",TRUE)+1,1),\"NumLig\",\"<=\",TRUE))-1),\"\"),L25))))","v":0},null,null,null,0,null,null,0,null,null,""]
[25,null,null,null,null,{"$f":"IF(AND(E26>=Présentation!$I$43,I26>=Présentation!$J$43,K26>=Présentation!$K$43),\"CC\",IF(AND(E26>=Présentation!$P$43,I26>=Présentation!$Q$43,K26>=Présentation!$R$43),\"KC\",IF(AND(E26>=Présentation!$I$44,I26>=Présentation!$J$44,K26>=Présentation!$K$44),\"SC\",IF(AND(E26>=Présentation!$P$44,I26>=Présentation!$Q$44,K26>=Présentation!$R$44),\"PS\",\"\"))))","v":""},null,null,null,null,null,0,{"$f":"IF(Présentation!$D$44=\"IC\",E26*I26,IF(Présentation!$D$44=\"GO\",E26*10+I26,IF(Présentation!$D$44=\"GOD\",E26*100+I26*10+K26,IF(Présentation!$D$44=\"PA\",IFERROR(INDEX(PA_EN_FR!$H$2:$H$28,(Position_Dernier(K26*10/Note_Max,OFFSET(PA_EN_FR!$E$2,Position_premier(I26*10/Note_Max,OFFSET(PA_EN_FR!$D$2,Position_premier(E26*10/Note_Max,PA_EN_FR!$B$2:$B$28,\"NumLig\",\">=\",TRUE)-2,0,Position_Dernier(E26*10/Note_Max,PA_EN_FR!$A$2:$A$28,\"NumLig\",\"<=\",TRUE)-Position_premier(E26*10/Note_Max,PA_EN_FR!$B$2:$B$28,\"NumLig\",\">=\")+1,1),\"NumLig\",\">=\",TRUE)-2,0,Position_Dernier(I26*10/Note_Max,OFFSET(PA_EN_FR!$C$2,Position_premier(E26*10/Note_Max,PA_EN_FR!$B$2:$B$28,\"NumLig\",\">=\",TRUE)-2,0,Position_Dernier(E26*10/Note_Max,PA_EN_FR!$A$2:$A$28,\"NumLig\",\"<=\",TRUE)-Position_premier(E26*10/Note_Max,PA_EN_FR!$B$2:$B$28,\"NumLig\",\">=\",TRUE)+1,1),\"NumLig\",\"<=\",TRUE)-Position_premier(I26*10/Note_Max,OFFSET(PA_EN_FR!$D$2,Position_premier(E26*10/Note_Max,PA_EN_FR!$B$2:$B$28,\"NumLig\",\">=\",TRUE)-2,0,Position_Dernier(E26*10/Note_Max,PA_EN_FR!$A$2:$A$28,\"NumLig\",\"<=\",TRUE)-Position_premier(E26*10/Note_Max,PA_EN_FR!$B$2:$B$28,\"NumLig\",\">=\",TRUE)+1,1),\"NumLig\",\">=\",TRUE)+1,1),\"NumLig\",\"<=\",TRUE))-1),\"\"),L26))))","v":0},null,null,null,0,null,null,0,null,null,""]
[26,null,null,null,null,{"$f":"IF(AND(E27>=Présentation!$I$43,I27>=Présentation!$J$43,K27>=Présentation!$K$43),\"CC\",IF(AND(E27>=Présentation!$P$43,I27>=Présentation!$Q$43,K27>=Présentation!$R$43),\"KC\",IF(AND(E27>=Présentation!$I$44,I27>=Présentation!$J$44,K27>=Présentation!$K$44),\"SC\",IF(AND(E27>=Présentation!$P$44,I27>=Présentation!$Q$44,K27>=Présentation!$R$44),\"PS\",\"\"))))","v":""},null,null,null,null,null,0,{"$f":"IF(Présentation!$D$44=\"IC\",E27*I27,IF(Présentation!$D$44=\"GO\",E27*10+I27,IF(Présentation!$D$44=\"GOD\",E27*100+I27*10+K27,IF(Présentation!$D$44=\"PA\",IFERROR(INDEX(PA_EN_FR!$H$2:$H$28,(Position_Dernier(K27*10/Note_Max,OFFSET(PA_EN_FR!$E$2,Position_premier(I27*10/Note_Max,OFFSET(PA_EN_FR!$D$2,Position_premier(E27*10/Note_Max,PA_EN_FR!$B$2:$B$28,\"NumLig\",\">=\",TRUE)-2,0,Position_Dernier(E27*10/Note_Max,PA_EN_FR!$A$2:$A$28,\"NumLig\",\"<=\",TRUE)-Position_premier(E27*10/Note_Max,PA_EN_FR!$B$2:$B$28,\"NumLig\",\">=\")+1,1),\"NumLig\",\">=\",TRUE)-2,0,Position_Dernier(I27*10/Note_Max,OFFSET(PA_EN_FR!$C$2,Position_premier(E27*10/Note_Max,PA_EN_FR!$B$2:$B$28,\"NumLig\",\">=\",TRUE)-2,0,Position_Dernier(E27*10/Note_Max,PA_EN_FR!$A$2:$A$28,\"NumLig\",\"<=\",TRUE)-Position_premier(E27*10/Note_Max,PA_EN_FR!$B$2:$B$28,\"NumLig\",\">=\",TRUE)+1,1),\"NumLig\",\"<=\",TRUE)-Position_premier(I27*10/Note_Max,OFFSET(PA_EN_FR!$D$2,Position_premier(E27*10/Note_Max,PA_EN_FR!$B$2:$B$28,\"NumLig\",\">=\",TRUE)-2,0,Position_Dernier(E27*10/Note_Max,PA_EN_FR!$A$2:$A$28,\"NumLig\",\"<=\",TRUE)-Position_premier(E27*10/Note_Max,PA_EN_FR!$B$2:$B$28,\"NumLig\",\">=\",TRUE)+1,1),\"NumLig\",\">=\",TRUE)+1,1),\"NumLig\",\"<=\",TRUE))-1),\"\"),L27))))","v":0},null,null,null,0,null,null,0,null,null,""]
[27,null,null,null,null,{"$f":"IF(AND(E28>=Présentation!$I$43,I28>=Présentation!$J$43,K28>=Présentation!$K$43),\"CC\",IF(AND(E28>=Présentation!$P$43,I28>=Présentation!$Q$43,K28>=Présentation!$R$43),\"KC\",IF(AND(E28>=Présentation!$I$44,I28>=Présentation!$J$44,K28>=Présentation!$K$44),\"SC\",IF(AND(E28>=Présentation!$P$44,I28>=Présentation!$Q$44,K28>=Présentation!$R$44),\"PS\",\"\"))))","v":""},null,null,null,null,null,0,{"$f":"IF(Présentation!$D$44=\"IC\",E28*I28,IF(Présentation!$D$44=\"GO\",E28*10+I28,IF(Présentation!$D$44=\"GOD\",E28*100+I28*10+K28,IF(Présentation!$D$44=\"PA\",IFERROR(INDEX(PA_EN_FR!$H$2:$H$28,(Position_Dernier(K28*10/Note_Max,OFFSET(PA_EN_FR!$E$2,Position_premier(I28*10/Note_Max,OFFSET(PA_EN_FR!$D$2,Position_premier(E28*10/Note_Max,PA_EN_FR!$B$2:$B$28,\"NumLig\",\">=\",TRUE)-2,0,Position_Dernier(E28*10/Note_Max,PA_EN_FR!$A$2:$A$28,\"NumLig\",\"<=\",TRUE)-Position_premier(E28*10/Note_Max,PA_EN_FR!$B$2:$B$28,\"NumLig\",\">=\")+1,1),\"NumLig\",\">=\",TRUE)-2,0,Position_Dernier(I28*10/Note_Max,OFFSET(PA_EN_FR!$C$2,Position_premier(E28*10/Note_Max,PA_EN_FR!$B$2:$B$28,\"NumLig\",\">=\",TRUE)-2,0,Position_Dernier(E28*10/Note_Max,PA_EN_FR!$A$2:$A$28,\"NumLig\",\"<=\",TRUE)-Position_premier(E28*10/Note_Max,PA_EN_FR!$B$2:$B$28,\"NumLig\",\">=\",TRUE)+1,1),\"NumLig\",\"<=\",TRUE)-Position_premier(I28*10/Note_Max,OFFSET(PA_EN_FR!$D$2,Position_premier(E28*10/Note_Max,PA_EN_FR!$B$2:$B$28,\"NumLig\",\">=\",TRUE)-2,0,Position_Dernier(E28*10/Note_Max,PA_EN_FR!$A$2:$A$28,\"NumLig\",\"<=\",TRUE)-Position_premier(E28*10/Note_Max,PA_EN_FR!$B$2:$B$28,\"NumLig\",\">=\",TRUE)+1,1),\"NumLig\",\">=\",TRUE)+1,1),\"NumLig\",\"<=\",TRUE))-1),\"\"),L28))))","v":0},null,null,null,0,null,null,0,null,null,""]
[28,null,null,null,null,{"$f":"IF(AND(E29>=Présentation!$I$43,I29>=Présentation!$J$43,K29>=Présentation!$K$43),\"CC\",IF(AND(E29>=Présentation!$P$43,I29>=Présentation!$Q$43,K29>=Présentation!$R$43),\"KC\",IF(AND(E29>=Présentation!$I$44,I29>=Présentation!$J$44,K29>=Présentation!$K$44),\"SC\",IF(AND(E29>=Présentation!$P$44,I29>=Présentation!$Q$44,K29>=Présentation!$R$44),\"PS\",\"\"))))","v":""},null,null,null,null,null,{"$f":"IFERROR(IF(C29>\"\",IF(D29>\"\",IF(E29=\"\",Note_Max,E29)*IF(I29=\"\",Note_Max,I29)*IF(K29=\"\",Note_Max,K29),3),0),0)","v":0},{"$f":"IF(Présentation!$D$44=\"IC\",E29*I29,IF(Présentation!$D$44=\"GO\",E29*10+I29,IF(Présentation!$D$44=\"GOD\",E29*100+I29*10+K29,IF(Présentation!$D$44=\"PA\",IFERROR(INDEX(PA_EN_FR!$H$2:$H$28,(Position_Dernier(K29*10/Note_Max,OFFSET(PA_EN_FR!$E$2,Position_premier(I29*10/Note_Max,OFFSET(PA_EN_FR!$D$2,Position_premier(E29*10/Note_Max,PA_EN_FR!$B$2:$B$28,\"NumLig\",\">=\",TRUE)-2,0,Position_Dernier(E29*10/Note_Max,PA_EN_FR!$A$2:$A$28,\"NumLig\",\"<=\",TRUE)-Position_premier(E29*10/Note_Max,PA_EN_FR!$B$2:$B$28,\"NumLig\",\">=\")+1,1),\"NumLig\",\">=\",TRUE)-2,0,Position_Dernier(I29*10/Note_Max,OFFSET(PA_EN_FR!$C$2,Position_premier(E29*10/Note_Max,PA_EN_FR!$B$2:$B$28,\"NumLig\",\">=\",TRUE)-2,0,Position_Dernier(E29*10/Note_Max,PA_EN_FR!$A$2:$A$28,\"NumLig\",\"<=\",TRUE)-Position_premier(E29*10/Note_Max,PA_EN_FR!$B$2:$B$28,\"NumLig\",\">=\",TRUE)+1,1),\"NumLig\",\"<=\",TRUE)-Position_premier(I29*10/Note_Max,OFFSET(PA_EN_FR!$D$2,Position_premier(E29*10/Note_Max,PA_EN_FR!$B$2:$B$28,\"NumLig\",\">=\",TRUE)-2,0,Position_Dernier(E29*10/Note_Max,PA_EN_FR!$A$2:$A$28,\"NumLig\",\"<=\",TRUE)-Position_premier(E29*10/Note_Max,PA_EN_FR!$B$2:$B$28,\"NumLig\",\">=\",TRUE)+1,1),\"NumLig\",\">=\",TRUE)+1,1),\"NumLig\",\"<=\",TRUE))-1),\"\"),L29))))","v":0},null,null,null,0,null,null,0,null,null,""]
[29,null,null,null,null,{"$f":"IF(AND(E30>=Présentation!$I$43,I30>=Présentation!$J$43,K30>=Présentation!$K$43),\"CC\",IF(AND(E30>=Présentation!$P$43,I30>=Présentation!$Q$43,K30>=Présentation!$R$43),\"KC\",IF(AND(E30>=Présentation!$I$44,I30>=Présentation!$J$44,K30>=Présentation!$K$44),\"SC\",IF(AND(E30>=Présentation!$P$44,I30>=Présentation!$Q$44,K30>=Présentation!$R$44),\"PS\",\"\"))))","v":""},null,null,null,null,null,0,{"$f":"IF(Présentation!$D$44=\"IC\",E30*I30,IF(Présentation!$D$44=\"GO\",E30*10+I30,IF(Présentation!$D$44=\"GOD\",E30*100+I30*10+K30,IF(Présentation!$D$44=\"PA\",IFERROR(INDEX(PA_EN_FR!$H$2:$H$28,(Position_Dernier(K30*10/Note_Max,OFFSET(PA_EN_FR!$E$2,Position_premier(I30*10/Note_Max,OFFSET(PA_EN_FR!$D$2,Position_premier(E30*10/Note_Max,PA_EN_FR!$B$2:$B$28,\"NumLig\",\">=\",TRUE)-2,0,Position_Dernier(E30*10/Note_Max,PA_EN_FR!$A$2:$A$28,\"NumLig\",\"<=\",TRUE)-Position_premier(E30*10/Note_Max,PA_EN_FR!$B$2:$B$28,\"NumLig\",\">=\")+1,1),\"NumLig\",\">=\",TRUE)-2,0,Position_Dernier(I30*10/Note_Max,OFFSET(PA_EN_FR!$C$2,Position_premier(E30*10/Note_Max,PA_EN_FR!$B$2:$B$28,\"NumLig\",\">=\",TRUE)-2,0,Position_Dernier(E30*10/Note_Max,PA_EN_FR!$A$2:$A$28,\"NumLig\",\"<=\",TRUE)-Position_premier(E30*10/Note_Max,PA_EN_FR!$B$2:$B$28,\"NumLig\",\">=\",TRUE)+1,1),\"NumLig\",\"<=\",TRUE)-Position_premier(I30*10/Note_Max,OFFSET(PA_EN_FR!$D$2,Position_premier(E30*10/Note_Max,PA_EN_FR!$B$2:$B$28,\"NumLig\",\">=\",TRUE)-2,0,Position_Dernier(E30*10/Note_Max,PA_EN_FR!$A$2:$A$28,\"NumLig\",\"<=\",TRUE)-Position_premier(E30*10/Note_Max,PA_EN_FR!$B$2:$B$28,\"NumLig\",\">=\",TRUE)+1,1),\"NumLig\",\">=\",TRUE)+1,1),\"NumLig\",\"<=\",TRUE))-1),\"\"),L30))))","v":0},null,null,null,0,null,null,0,null,null,""]
[30,null,null,null,null,{"$f":"IF(AND(E31>=Présentation!$I$43,I31>=Présentation!$J$43,K31>=Présentation!$K$43),\"CC\",IF(AND(E31>=Présentation!$P$43,I31>=Présentation!$Q$43,K31>=Présentation!$R$43),\"KC\",IF(AND(E31>=Présentation!$I$44,I31>=Présentation!$J$44,K31>=Présentation!$K$44),\"SC\",IF(AND(E31>=Présentation!$P$44,I31>=Présentation!$Q$44,K31>=Présentation!$R$44),\"PS\",\"\"))))","v":""},null,null,null,null,null,0,{"$f":"IF(Présentation!$D$44=\"IC\",E31*I31,IF(Présentation!$D$44=\"GO\",E31*10+I31,IF(Présentation!$D$44=\"GOD\",E31*100+I31*10+K31,IF(Présentation!$D$44=\"PA\",IFERROR(INDEX(PA_EN_FR!$H$2:$H$28,(Position_Dernier(K31*10/Note_Max,OFFSET(PA_EN_FR!$E$2,Position_premier(I31*10/Note_Max,OFFSET(PA_EN_FR!$D$2,Position_premier(E31*10/Note_Max,PA_EN_FR!$B$2:$B$28,\"NumLig\",\">=\",TRUE)-2,0,Position_Dernier(E31*10/Note_Max,PA_EN_FR!$A$2:$A$28,\"NumLig\",\"<=\",TRUE)-Position_premier(E31*10/Note_Max,PA_EN_FR!$B$2:$B$28,\"NumLig\",\">=\")+1,1),\"NumLig\",\">=\",TRUE)-2,0,Position_Dernier(I31*10/Note_Max,OFFSET(PA_EN_FR!$C$2,Position_premier(E31*10/Note_Max,PA_EN_FR!$B$2:$B$28,\"NumLig\",\">=\",TRUE)-2,0,Position_Dernier(E31*10/Note_Max,PA_EN_FR!$A$2:$A$28,\"NumLig\",\"<=\",TRUE)-Position_premier(E31*10/Note_Max,PA_EN_FR!$B$2:$B$28,\"NumLig\",\">=\",TRUE)+1,1),\"NumLig\",\"<=\",TRUE)-Position_premier(I31*10/Note_Max,OFFSET(PA_EN_FR!$D$2,Position_premier(E31*10/Note_Max,PA_EN_FR!$B$2:$B$28,\"NumLig\",\">=\",TRUE)-2,0,Position_Dernier(E31*10/Note_Max,PA_EN_FR!$A$2:$A$28,\"NumLig\",\"<=\",TRUE)-Position_premier(E31*10/Note_Max,PA_EN_FR!$B$2:$B$28,\"NumLig\",\">=\",TRUE)+1,1),\"NumLig\",\">=\",TRUE)+1,1),\"NumLig\",\"<=\",TRUE))-1),\"\"),L31))))","v":0},null,null,null,0,null,null,0,null,null,""]

{"sheet":"_Evolutions","index":3,"n_rows":20,"n_cols":4,"rows_kept":20,"cut":false,"hidden":true,"merged":[]}
["V","BUG ou DEV","Solution","Attention"]
[18,"BUG : Quand l'AMDEC n'est pas renseignée, des flags rouges apparaissent dans l'IPA","FIX: Dans la colonne IPA de l'AMDEC, arrête les mises en forme si 0 ou \"\""]
[19,"DEV : Impossible d'imprimer facilement un formulaire (A4 sans mise en page)","DEV : Création d'un onglet ImprimA4"]
[20,"BUG : Le Statut qui donne les couleurs est dysfonctionnel (ou pb de recopie ?)","FIX : (Re)conception des règles et des calculs du formulaire (NPR' sécurisé)"]
[21,"DEV : Tables de seuils inutiles en fonction de la Note Max choisie","DEV : regroupement des 2 tables et séparation EC et CS (gain 2 lignes)"]
[22,"DEV : Les Noms des tables de cotation sont affichées en choix et en entête","DEV : déplacement des noms de table en entête"]
[23,"DEV : Lorsque Note_Max = 5, les lignes des notes 6 à 10 sont perdues à l'affichage","DEV : masque les lignes (ou les démasque) en fonction de la Note_Max"]
[24,"DEV : les (s) dans l'entete du tableau sont contre-productifs","DEV : suppression effet, cause, action, responsable."]
[25,"DEV : La couleur jaune n'est utililisée que pour les actions non-closes >25%","DEV : Restreindre le fond vert seulement aux actions closes !"]
[26,"DEV: L'occurrence intègre la détection des effets (non => détection)","DEV suppression des Effets dans l'occurrence en Maitrise (laisser en Détection)","Revoir les Supports de Cours et T.D."]
[27,"BUG : Etat ald État","FIX : É au lieu de E pour échéancier et état en B23 et B88 dans \"Présentation\""]
[28,"DEV : Suppression des onglets historiques inutiles","FIX: K97 à K147 en retour à la ligne automatique."]
[29,"BUG : Faute de Français sur table Fonctionnalité (Fonctionalité)","FIX : Correction dans listes et tables"]
[30,"DEV : Les commentaires sur les notations ne sont pas mémorisés (activés)","DEV : Toute modification d'évaluation affecte un commentaire en GODG'O'D'","Quid: notes en copier/coller de masse à gérer aussi !"]
[31,"DEV : L'onglet AMDEC10 est interprétable avec une table de cotation sur 5","DEV : Renomme l'onglet AMDEC10 en AMDEC (avec adaptation macro)"]
[100,"DEV : Mise en production","DEV : Protection du Fichier et des onglets"]
[101,"BUG : En base 10, le titre des commentaires ne s'affiche pas parfois ","FIX : Champ titre doit comporter 32 caractères maxi (refonte)"]
[102,"BUG : Certaines zones sont inaccessibles avec la protection","FIX : Correction des droits sur certaines cellules"]
[103,"BUG : Les tables ne sont pas finalisées (personnalisés en autre vs support de cours)","FIX : Renseignement des grilles Personnalisé et complément d'une grille Occurrence"]
[104,"DEV : Robustification des Fonctions de recherche, revue SCMH 26/11/2019","DEV : Position_Premier et Position_Dernier de v130 à v142 et v143. Ajout ppm_Process en Occurrence"]

{"sheet":"ImprimA4","index":4,"n_rows":11,"n_cols":24,"rows_kept":11,"cut":false,"hidden":true,"merged":[]}
["N°",{"$f":"IFERROR(IF(Présentation!K1=\"Procédé (Moyen)\",\"Constituant\",IF(Présentation!K1=\"Projet\",\"Etape\",IF(Présentation!K1=\"Produit (Conception)\",\"Elément\",IF(Présentation!K1=\"Process (Processus)\",\"Opération\",#N/A)))) &\" / Fonction / Exigence\",\"/!\\ Type d'AMDEC sur 'Présentation'$J$1\")","v":"Opération / Fonction / Exigence"},"Mode de Défaillance Potentielle","Effet(s) Potentiel(s) de la Défaillance","G","CS\nEC","Cause(s) Potentielle(s) de la Défaillance","Prévention sur Cause","O","Inspection sur Mode (ou Effets) ","D",{"$f":"\"NPR (>\"&Présentation!D43&\")\"","v":"NPR (>25)"},{"$f":"\"IPA (\" & Présentation!D44 & \")\"","v":"IPA (NPR)"},"Action(s) Recommandée(s)","Responsable(s)","pour le","G'","O'","D'","NPR'","Remarques / Acceptation des risques résiduels","Traité le","Statut Risque",{"$f":"100%-IF((IF(IFERROR(MAX(ImprimA4!W:W),0%)>25%,-1,1))>0,EXP(-EXP((2.25/25%)*(IFERROR(MAX(ImprimA4!W:W),0%)-25%))),EXP(-EXP((0.834/75%)*(IFERROR(MAX(ImprimA4!W:W),0%)-25%))))","v":0.10003483733937224}]
[1,null,null,null,null,{"$f":"IF(Présentation!$D$42=10,IF(AND(E2>=Présentation!#REF!,I2>=Présentation!#REF!,K2>=Présentation!#REF!),\"CC\",IF(AND(E2>=Présentation!$I$45,I2>=Présentation!#REF!,K2>=Présentation!#REF!),\"KC\",IF(AND(E2>=Présentation!#REF!,I2>=Présentation!$J$45,K2>=Présentation!$K$45),\"SC\",IF(AND(E2>=Présentation!#REF!,I2>=Présentation!#REF!,K2>=Présentation!#REF!),\"PS\",\"\")))),IF(AND(E2>=Présentation!$I$43,I2>=Présentation!$J$43,K2>=Présentation!$K$43),\"CC\",IF(AND(E2>=Présentation!$P$43,I2>=Présentation!$Q$43,K2>=Présentation!$R$43),\"KC\",IF(AND(E2>=Présentation!$I$44,I2>=Présentation!$J$44,K2>=Présentation!$K$44),\"SC\",IF(AND(E2>=Présentation!$P$44,I2>=Présentation!$Q$44,K2>=Présentation!$R$44),\"PS\",\"\")))))","v":""},null,null,null,null,null,{"$f":"E2*I2*K2","v":0},{"$f":"IF(Présentation!$D$44=\"IC\",E2*I2,IF(Présentation!$D$44=\"GO\",E2*10+I2,IF(Présentation!$D$44=\"GOD\",E2*100+I2*10+K2,IF(Présentation!$D$44=\"PA\",IFERROR(INDEX(PA_EN_FR!$H$2:$H$28,(Position_Dernier(K2*10/Présentation!$D$42,OFFSET(PA_EN_FR!$E$2,Position_premier(I2*10/Présentation!$D$42,OFFSET(PA_EN_FR!$D$2,Position_premier(E2*10/Présentation!$D$42,PA_EN_FR!$B$2:$B$28,\"NumLig\",\">=\",TRUE)-2,0,Position_Dernier(E2*10/Présentation!$D$42,PA_EN_FR!$A$2:$A$28,\"NumLig\",\"<=\",TRUE)-Position_premier(E2*10/Présentation!$D$42,PA_EN_FR!$B$2:$B$28,\"NumLig\",\">=\")+1,1),\"NumLig\",\">=\",TRUE)-2,0,Position_Dernier(I2*10/Présentation!$D$42,OFFSET(PA_EN_FR!$C$2,Position_premier(E2*10/Présentation!$D$42,PA_EN_FR!$B$2:$B$28,\"NumLig\",\">=\",TRUE)-2,0,Position_Dernier(E2*10/Présentation!$D$42,PA_EN_FR!$A$2:$A$28,\"NumLig\",\"<=\",TRUE)-Position_premier(E2*10/Présentation!$D$42,PA_EN_FR!$B$2:$B$28,\"NumLig\",\">=\",TRUE)+1,1),\"NumLig\",\"<=\",TRUE)-Position_premier(I2*10/Présentation!$D$42,OFFSET(PA_EN_FR!$D$2,Position_premier(E2*10/Présentation!$D$42,PA_EN_FR!$B$2:$B$28,\"NumLig\",\">=\",TRUE)-2,0,Position_Dernier(E2*10/Présentation!$D$42,PA_EN_FR!$A$2:$A$28,\"NumLig\",\"<=\",TRUE)-Position_premier(E2*10/Présentation!$D$42,PA_EN_FR!$B$2:$B$28,\"NumLig\",\">=\",TRUE)+1,1),\"NumLig\",\">=\",TRUE)+1,1),\"NumLig\",\"<=\",TRUE))-1),\"\"),L2))))","v":0},null,null,null,{"$f":"E2","v":0},null,null,{"$f":"Q2*R2*S2","v":0},null,null,{"$f":"IFERROR(IF(OR(V2>0,AND(T2>0,T2<25,P2=\"Close\"),AND(L2>0,L2<25)),0%,IF(P2=\"Attente Décision\",100%,IF(P2=\"Attente Ressource\",75%,IF(N2>0,25%,IF(OR(L2>25,C2>\"\"),50%,\"\")))))+IF(OR(P2=\"En Retard\",AND(P2=\"Close\",OR(T2>=25,T2=0))),25%,0%),\"\")","v":""}]
[{"$f":"A2+1","v":2},null,null,null,null,{"$f":"IF(Présentation!$D$42=10,IF(AND(E3>=Présentation!#REF!,I3>=Présentation!#REF!,K3>=Présentation!#REF!),\"CC\",IF(AND(E3>=Présentation!$I$45,I3>=Présentation!#REF!,K3>=Présentation!#REF!),\"KC\",IF(AND(E3>=Présentation!#REF!,I3>=Présentation!$J$45,K3>=Présentation!$K$45),\"SC\",IF(AND(E3>=Présentation!#REF!,I3>=Présentation!#REF!,K3>=Présentation!#REF!),\"PS\",\"\")))),IF(AND(E3>=Présentation!$I$43,I3>=Présentation!$J$43,K3>=Présentation!$K$43),\"CC\",IF(AND(E3>=Présentation!$P$43,I3>=Présentation!$Q$43,K3>=Présentation!$R$43),\"KC\",IF(AND(E3>=Présentation!$I$44,I3>=Présentation!$J$44,K3>=Présentation!$K$44),\"SC\",IF(AND(E3>=Présentation!$P$44,I3>=Présentation!$Q$44,K3>=Présentation!$R$44),\"PS\",\"\")))))","v":""},null,null,null,null,null,{"$f":"E3*I3*K3","v":0},{"$f":"IF(Présentation!$D$44=\"IC\",E3*I3,IF(Présentation!$D$44=\"GO\",E3*10+I3,IF(Présentation!$D$44=\"GOD\",E3*100+I3*10+K3,IF(Présentation!$D$44=\"PA\",IFERROR(INDEX(PA_EN_FR!$H$2:$H$28,(Position_Dernier(K3*10/Présentation!$D$42,OFFSET(PA_EN_FR!$E$2,Position_premier(I3*10/Présentation!$D$42,OFFSET(PA_EN_FR!$D$2,Position_premier(E3*10/Présentation!$D$42,PA_EN_FR!$B$2:$B$28,\"NumLig\",\">=\",TRUE)-2,0,Position_Dernier(E3*10/Présentation!$D$42,PA_EN_FR!$A$2:$A$28,\"NumLig\",\"<=\",TRUE)-Position_premier(E3*10/Présentation!$D$42,PA_EN_FR!$B$2:$B$28,\"NumLig\",\">=\")+1,1),\"NumLig\",\">=\",TRUE)-2,0,Position_Dernier(I3*10/Présentation!$D$42,OFFSET(PA_EN_FR!$C$2,Position_premier(E3*10/Présentation!$D$42,PA_EN_FR!$B$2:$B$28,\"NumLig\",\">=\",TRUE)-2,0,Position_Dernier(E3*10/Présentation!$D$42,PA_EN_FR!$A$2:$A$28,\"NumLig\",\"<=\",TRUE)-Position_premier(E3*10/Présentation!$D$42,PA_EN_FR!$B$2:$B$28,\"NumLig\",\">=\",TRUE)+1,1),\"NumLig\",\"<=\",TRUE)-Position_premier(I3*10/Présentation!$D$42,OFFSET(PA_EN_FR!$D$2,Position_premier(E3*10/Présentation!$D$42,PA_EN_FR!$B$2:$B$28,\"NumLig\",\">=\",TRUE)-2,0,Position_Dernier(E3*10/Présentation!$D$42,PA_EN_FR!$A$2:$A$28,\"NumLig\",\"<=\",TRUE)-Position_premier(E3*10/Présentation!$D$42,PA_EN_FR!$B$2:$B$28,\"NumLig\",\">=\",TRUE)+1,1),\"NumLig\",\">=\",TRUE)+1,1),\"NumLig\",\"<=\",TRUE))-1),\"\"),L3))))","v":0},null,null,null,{"$f":"E3","v":0},null,null,0,null,null,""]
[3,null,null,null,null,{"$f":"IF(Présentation!$D$42=10,IF(AND(E4>=Présentation!#REF!,I4>=Présentation!#REF!,K4>=Présentation!#REF!),\"CC\",IF(AND(E4>=Présentation!$I$45,I4>=Présentation!#REF!,K4>=Présentation!#REF!),\"KC\",IF(AND(E4>=Présentation!#REF!,I4>=Présentation!$J$45,K4>=Présentation!$K$45),\"SC\",IF(AND(E4>=Présentation!#REF!,I4>=Présentation!#REF!,K4>=Présentation!#REF!),\"PS\",\"\")))),IF(AND(E4>=Présentation!$I$43,I4>=Présentation!$J$43,K4>=Présentation!$K$43),\"CC\",IF(AND(E4>=Présentation!$P$43,I4>=Présentation!$Q$43,K4>=Présentation!$R$43),\"KC\",IF(AND(E4>=Présentation!$I$44,I4>=Présentation!$J$44,K4>=Présentation!$K$44),\"SC\",IF(AND(E4>=Présentation!$P$44,I4>=Présentation!$Q$44,K4>=Présentation!$R$44),\"PS\",\"\")))))","v":""},null,null,null,null,null,0,{"$f":"IF(Présentation!$D$44=\"IC\",E4*I4,IF(Présentation!$D$44=\"GO\",E4*10+I4,IF(Présentation!$D$44=\"GOD\",E4*100+I4*10+K4,IF(Présentation!$D$44=\"PA\",IFERROR(INDEX(PA_EN_FR!$H$2:$H$28,(Position_Dernier(K4*10/Présentation!$D$42,OFFSET(PA_EN_FR!$E$2,Position_premier(I4*10/Présentation!$D$42,OFFSET(PA_EN_FR!$D$2,Position_premier(E4*10/Présentation!$D$42,PA_EN_FR!$B$2:$B$28,\"NumLig\",\">=\",TRUE)-2,0,Position_Dernier(E4*10/Présentation!$D$42,PA_EN_FR!$A$2:$A$28,\"NumLig\",\"<=\",TRUE)-Position_premier(E4*10/Présentation!$D$42,PA_EN_FR!$B$2:$B$28,\"NumLig\",\">=\")+1,1),\"NumLig\",\">=\",TRUE)-2,0,Position_Dernier(I4*10/Présentation!$D$42,OFFSET(PA_EN_FR!$C$2,Position_premier(E4*10/Présentation!$D$42,PA_EN_FR!$B$2:$B$28,\"NumLig\",\">=\",TRUE)-2,0,Position_Dernier(E4*10/Présentation!$D$42,PA_EN_FR!$A$2:$A$28,\"NumLig\",\"<=\",TRUE)-Position_premier(E4*10/Présentation!$D$42,PA_EN_FR!$B$2:$B$28,\"NumLig\",\">=\",TRUE)+1,1),\"NumLig\",\"<=\",TRUE)-Position_premier(I4*10/Présentation!$D$42,OFFSET(PA_EN_FR!$D$2,Position_premier(E4*10/Présentation!$D$42,PA_EN_FR!$B$2:$B$28,\"NumLig\",\">=\",TRUE)-2,0,Position_Dernier(E4*10/Présentation!$D$42,PA_EN_FR!$A$2:$A$28,\"NumLig\",\"<=\",TRUE)-Position_premier(E4*10/Présentation!$D$42,PA_EN_FR!$B$2:$B$28,\"NumLig\",\">=\",TRUE)+1,1),\"NumLig\",\">=\",TRUE)+1,1),\"NumLig\",\"<=\",TRUE))-1),\"\"),L4))))","v":0},null,null,null,0,null,null,0,null,null,""]
[4,null,null,null,null,{"$f":"IF(Présentation!$D$42=10,IF(AND(E5>=Présentation!#REF!,I5>=Présentation!#REF!,K5>=Présentation!#REF!),\"CC\",IF(AND(E5>=Présentation!$I$45,I5>=Présentation!#REF!,K5>=Présentation!#REF!),\"KC\",IF(AND(E5>=Présentation!#REF!,I5>=Présentation!$J$45,K5>=Présentation!$K$45),\"SC\",IF(AND(E5>=Présentation!#REF!,I5>=Présentation!#REF!,K5>=Présentation!#REF!),\"PS\",\"\")))),IF(AND(E5>=Présentation!$I$43,I5>=Présentation!$J$43,K5>=Présentation!$K$43),\"CC\",IF(AND(E5>=Présentation!$P$43,I5>=Présentation!$Q$43,K5>=Présentation!$R$43),\"KC\",IF(AND(E5>=Présentation!$I$44,I5>=Présentation!$J$44,K5>=Présentation!$K$44),\"SC\",IF(AND(E5>=Présentation!$P$44,I5>=Présentation!$Q$44,K5>=Présentation!$R$44),\"PS\",\"\")))))","v":""},null,null,null,null,null,0,{"$f":"IF(Présentation!$D$44=\"IC\",E5*I5,IF(Présentation!$D$44=\"GO\",E5*10+I5,IF(Présentation!$D$44=\"GOD\",E5*100+I5*10+K5,IF(Présentation!$D$44=\"PA\",IFERROR(INDEX(PA_EN_FR!$H$2:$H$28,(Position_Dernier(K5*10/Présentation!$D$42,OFFSET(PA_EN_FR!$E$2,Position_premier(I5*10/Présentation!$D$42,OFFSET(PA_EN_FR!$D$2,Position_premier(E5*10/Présentation!$D$42,PA_EN_FR!$B$2:$B$28,\"NumLig\",\">=\",TRUE)-2,0,Position_Dernier(E5*10/Présentation!$D$42,PA_EN_FR!$A$2:$A$28,\"NumLig\",\"<=\",TRUE)-Position_premier(E5*10/Présentation!$D$42,PA_EN_FR!$B$2:$B$28,\"NumLig\",\">=\")+1,1),\"NumLig\",\">=\",TRUE)-2,0,Position_Dernier(I5*10/Présentation!$D$42,OFFSET(PA_EN_FR!$C$2,Position_premier(E5*10/Présentation!$D$42,PA_EN_FR!$B$2:$B$28,\"NumLig\",\">=\",TRUE)-2,0,Position_Dernier(E5*10/Présentation!$D$42,PA_EN_FR!$A$2:$A$28,\"NumLig\",\"<=\",TRUE)-Position_premier(E5*10/Présentation!$D$42,PA_EN_FR!$B$2:$B$28,\"NumLig\",\">=\",TRUE)+1,1),\"NumLig\",\"<=\",TRUE)-Position_premier(I5*10/Présentation!$D$42,OFFSET(PA_EN_FR!$D$2,Position_premier(E5*10/Présentation!$D$42,PA_EN_FR!$B$2:$B$28,\"NumLig\",\">=\",TRUE)-2,0,Position_Dernier(E5*10/Présentation!$D$42,PA_EN_FR!$A$2:$A$28,\"NumLig\",\"<=\",TRUE)-Position_premier(E5*10/Présentation!$D$42,PA_EN_FR!$B$2:$B$28,\"NumLig\",\">=\",TRUE)+1,1),\"NumLig\",\">=\",TRUE)+1,1),\"NumLig\",\"<=\",TRUE))-1),\"\"),L5))))","v":0},null,null,null,0,null,null,0,null,null,""]
[5,null,null,null,null,{"$f":"IF(Présentation!$D$42=10,IF(AND(E6>=Présentation!#REF!,I6>=Présentation!#REF!,K6>=Présentation!#REF!),\"CC\",IF(AND(E6>=Présentation!$I$45,I6>=Présentation!#REF!,K6>=Présentation!#REF!),\"KC\",IF(AND(E6>=Présentation!#REF!,I6>=Présentation!$J$45,K6>=Présentation!$K$45),\"SC\",IF(AND(E6>=Présentation!#REF!,I6>=Présentation!#REF!,K6>=Présentation!#REF!),\"PS\",\"\")))),IF(AND(E6>=Présentation!$I$43,I6>=Présentation!$J$43,K6>=Présentation!$K$43),\"CC\",IF(AND(E6>=Présentation!$P$43,I6>=Présentation!$Q$43,K6>=Présentation!$R$43),\"KC\",IF(AND(E6>=Présentation!$I$44,I6>=Présentation!$J$44,K6>=Présentation!$K$44),\"SC\",IF(AND(E6>=Présentation!$P$44,I6>=Présentation!$Q$44,K6>=Présentation!$R$44),\"PS\",\"\")))))","v":""},null,null,null,null,null,0,{"$f":"IF(Présentation!$D$44=\"IC\",E6*I6,IF(Présentation!$D$44=\"GO\",E6*10+I6,IF(Présentation!$D$44=\"GOD\",E6*100+I6*10+K6,IF(Présentation!$D$44=\"PA\",IFERROR(INDEX(PA_EN_FR!$H$2:$H$28,(Position_Dernier(K6*10/Présentation!$D$42,OFFSET(PA_EN_FR!$E$2,Position_premier(I6*10/Présentation!$D$42,OFFSET(PA_EN_FR!$D$2,Position_premier(E6*10/Présentation!$D$42,PA_EN_FR!$B$2:$B$28,\"NumLig\",\">=\",TRUE)-2,0,Position_Dernier(E6*10/Présentation!$D$42,PA_EN_FR!$A$2:$A$28,\"NumLig\",\"<=\",TRUE)-Position_premier(E6*10/Présentation!$D$42,PA_EN_FR!$B$2:$B$28,\"NumLig\",\">=\")+1,1),\"NumLig\",\">=\",TRUE)-2,0,Position_Dernier(I6*10/Présentation!$D$42,OFFSET(PA_EN_FR!$C$2,Position_premier(E6*10/Présentation!$D$42,PA_EN_FR!$B$2:$B$28,\"NumLig\",\">=\",TRUE)-2,0,Position_Dernier(E6*10/Présentation!$D$42,PA_EN_FR!$A$2:$A$28,\"NumLig\",\"<=\",TRUE)-Position_premier(E6*10/Présentation!$D$42,PA_EN_FR!$B$2:$B$28,\"NumLig\",\">=\",TRUE)+1,1),\"NumLig\",\"<=\",TRUE)-Position_premier(I6*10/Présentation!$D$42,OFFSET(PA_EN_FR!$D$2,Position_premier(E6*10/Présentation!$D$42,PA_EN_FR!$B$2:$B$28,\"NumLig\",\">=\",TRUE)-2,0,Position_Dernier(E6*10/Présentation!$D$42,PA_EN_FR!$A$2:$A$28,\"NumLig\",\"<=\",TRUE)-Position_premier(E6*10/Présentation!$D$42,PA_EN_FR!$B$2:$B$28,\"NumLig\",\">=\",TRUE)+1,1),\"NumLig\",\">=\",TRUE)+1,1),\"NumLig\",\"<=\",TRUE))-1),\"\"),L6))))","v":0},null,null,null,0,null,null,0,null,null,""]
[6,null,null,null,null,{"$f":"IF(Présentation!$D$42=10,IF(AND(E7>=Présentation!#REF!,I7>=Présentation!#REF!,K7>=Présentation!#REF!),\"CC\",IF(AND(E7>=Présentation!$I$45,I7>=Présentation!#REF!,K7>=Présentation!#REF!),\"KC\",IF(AND(E7>=Présentation!#REF!,I7>=Présentation!$J$45,K7>=Présentation!$K$45),\"SC\",IF(AND(E7>=Présentation!#REF!,I7>=Présentation!#REF!,K7>=Présentation!#REF!),\"PS\",\"\")))),IF(AND(E7>=Présentation!$I$43,I7>=Présentation!$J$43,K7>=Présentation!$K$43),\"CC\",IF(AND(E7>=Présentation!$P$43,I7>=Présentation!$Q$43,K7>=Présentation!$R$43),\"KC\",IF(AND(E7>=Présentation!$I$44,I7>=Présentation!$J$44,K7>=Présentation!$K$44),\"SC\",IF(AND(E7>=Présentation!$P$44,I7>=Présentation!$Q$44,K7>=Présentation!$R$44),\"PS\",\"\")))))","v":""},null,null,null,null,null,0,{"$f":"IF(Présentation!$D$44=\"IC\",E7*I7,IF(Présentation!$D$44=\"GO\",E7*10+I7,IF(Présentation!$D$44=\"GOD\",E7*100+I7*10+K7,IF(Présentation!$D$44=\"PA\",IFERROR(INDEX(PA_EN_FR!$H$2:$H$28,(Position_Dernier(K7*10/Présentation!$D$42,OFFSET(PA_EN_FR!$E$2,Position_premier(I7*10/Présentation!$D$42,OFFSET(PA_EN_FR!$D$2,Position_premier(E7*10/Présentation!$D$42,PA_EN_FR!$B$2:$B$28,\"NumLig\",\">=\",TRUE)-2,0,Position_Dernier(E7*10/Présentation!$D$42,PA_EN_FR!$A$2:$A$28,\"NumLig\",\"<=\",TRUE)-Position_premier(E7*10/Présentation!$D$42,PA_EN_FR!$B$2:$B$28,\"NumLig\",\">=\")+1,1),\"NumLig\",\">=\",TRUE)-2,0,Position_Dernier(I7*10/Présentation!$D$42,OFFSET(PA_EN_FR!$C$2,Position_premier(E7*10/Présentation!$D$42,PA_EN_FR!$B$2:$B$28,\"NumLig\",\">=\",TRUE)-2,0,Position_Dernier(E7*10/Présentation!$D$42,PA_EN_FR!$A$2:$A$28,\"NumLig\",\"<=\",TRUE)-Position_premier(E7*10/Présentation!$D$42,PA_EN_FR!$B$2:$B$28,\"NumLig\",\">=\",TRUE)+1,1),\"NumLig\",\"<=\",TRUE)-Position_premier(I7*10/Présentation!$D$42,OFFSET(PA_EN_FR!$D$2,Position_premier(E7*10/Présentation!$D$42,PA_EN_FR!$B$2:$B$28,\"NumLig\",\">=\",TRUE)-2,0,Position_Dernier(E7*10/Présentation!$D$42,PA_EN_FR!$A$2:$A$28,\"NumLig\",\"<=\",TRUE)-Position_premier(E7*10/Présentation!$D$42,PA_EN_FR!$B$2:$B$28,\"NumLig\",\">=\",TRUE)+1,1),\"NumLig\",\">=\",TRUE)+1,1),\"NumLig\",\"<=\",TRUE))-1),\"\"),L7))))","v":0},null,null,null,0,null,null,0,null,null,""]
[7,null,null,null,null,{"$f":"IF(Présentation!$D$42=10,IF(AND(E8>=Présentation!#REF!,I8>=Présentation!#REF!,K8>=Présentation!#REF!),\"CC\",IF(AND(E8>=Présentation!$I$45,I8>=Présentation!#REF!,K8>=Présentation!#REF!),\"KC\",IF(AND(E8>=Présentation!#REF!,I8>=Présentation!$J$45,K8>=Présentation!$K$45),\"SC\",IF(AND(E8>=Présentation!#REF!,I8>=Présentation!#REF!,K8>=Présentation!#REF!),\"PS\",\"\")))),IF(AND(E8>=Présentation!$I$43,I8>=Présentation!$J$43,K8>=Présentation!$K$43),\"CC\",IF(AND(E8>=Présentation!$P$43,I8>=Présentation!$Q$43,K8>=Présentation!$R$43),\"KC\",IF(AND(E8>=Présentation!$I$44,I8>=Présentation!$J$44,K8>=Présentation!$K$44),\"SC\",IF(AND(E8>=Présentation!$P$44,I8>=Présentation!$Q$44,K8>=Présentation!$R$44),\"PS\",\"\")))))","v":""},null,null,null,null,null,0,{"$f":"IF(Présentation!$D$44=\"IC\",E8*I8,IF(Présentation!$D$44=\"GO\",E8*10+I8,IF(Présentation!$D$44=\"GOD\",E8*100+I8*10+K8,IF(Présentation!$D$44=\"PA\",IFERROR(INDEX(PA_EN_FR!$H$2:$H$28,(Position_Dernier(K8*10/Présentation!$D$42,OFFSET(PA_EN_FR!$E$2,Position_premier(I8*10/Présentation!$D$42,OFFSET(PA_EN_FR!$D$2,Position_premier(E8*10/Présentation!$D$42,PA_EN_FR!$B$2:$B$28,\"NumLig\",\">=\",TRUE)-2,0,Position_Dernier(E8*10/Présentation!$D$42,PA_EN_FR!$A$2:$A$28,\"NumLig\",\"<=\",TRUE)-Position_premier(E8*10/Présentation!$D$42,PA_EN_FR!$B$2:$B$28,\"NumLig\",\">=\")+1,1),\"NumLig\",\">=\",TRUE)-2,0,Position_Dernier(I8*10/Présentation!$D$42,OFFSET(PA_EN_FR!$C$2,Position_premier(E8*10/Présentation!$D$42,PA_EN_FR!$B$2:$B$28,\"NumLig\",\">=\",TRUE)-2,0,Position_Dernier(E8*10/Présentation!$D$42,PA_EN_FR!$A$2:$A$28,\"NumLig\",\"<=\",TRUE)-Position_premier(E8*10/Présentation!$D$42,PA_EN_FR!$B$2:$B$28,\"NumLig\",\">=\",TRUE)+1,1),\"NumLig\",\"<=\",TRUE)-Position_premier(I8*10/Présentation!$D$42,OFFSET(PA_EN_FR!$D$2,Position_premier(E8*10/Présentation!$D$42,PA_EN_FR!$B$2:$B$28,\"NumLig\",\">=\",TRUE)-2,0,Position_Dernier(E8*10/Présentation!$D$42,PA_EN_FR!$A$2:$A$28,\"NumLig\",\"<=\",TRUE)-Position_premier(E8*10/Présentation!$D$42,PA_EN_FR!$B$2:$B$28,\"NumLig\",\">=\",TRUE)+1,1),\"NumLig\",\">=\",TRUE)+1,1),\"NumLig\",\"<=\",TRUE))-1),\"\"),L8))))","v":0},null,null,null,0,null,null,0,null,null,""]
[8,null,null,null,null,{"$f":"IF(Présentation!$D$42=10,IF(AND(E9>=Présentation!#REF!,I9>=Présentation!#REF!,K9>=Présentation!#REF!),\"CC\",IF(AND(E9>=Présentation!$I$45,I9>=Présentation!#REF!,K9>=Présentation!#REF!),\"KC\",IF(AND(E9>=Présentation!#REF!,I9>=Présentation!$J$45,K9>=Présentation!$K$45),\"SC\",IF(AND(E9>=Présentation!#REF!,I9>=Présentation!#REF!,K9>=Présentation!#REF!),\"PS\",\"\")))),IF(AND(E9>=Présentation!$I$43,I9>=Présentation!$J$43,K9>=Présentation!$K$43),\"CC\",IF(AND(E9>=Présentation!$P$43,I9>=Présentation!$Q$43,K9>=Présentation!$R$43),\"KC\",IF(AND(E9>=Présentation!$I$44,I9>=Présentation!$J$44,K9>=Présentation!$K$44),\"SC\",IF(AND(E9>=Présentation!$P$44,I9>=Présentation!$Q$44,K9>=Présentation!$R$44),\"PS\",\"\")))))","v":""},null,null,null,null,null,0,{"$f":"IF(Présentation!$D$44=\"IC\",E9*I9,IF(Présentation!$D$44=\"GO\",E9*10+I9,IF(Présentation!$D$44=\"GOD\",E9*100+I9*10+K9,IF(Présentation!$D$44=\"PA\",IFERROR(INDEX(PA_EN_FR!$H$2:$H$28,(Position_Dernier(K9*10/Présentation!$D$42,OFFSET(PA_EN_FR!$E$2,Position_premier(I9*10/Présentation!$D$42,OFFSET(PA_EN_FR!$D$2,Position_premier(E9*10/Présentation!$D$42,PA_EN_FR!$B$2:$B$28,\"NumLig\",\">=\",TRUE)-2,0,Position_Dernier(E9*10/Présentation!$D$42,PA_EN_FR!$A$2:$A$28,\"NumLig\",\"<=\",TRUE)-Position_premier(E9*10/Présentation!$D$42,PA_EN_FR!$B$2:$B$28,\"NumLig\",\">=\")+1,1),\"NumLig\",\">=\",TRUE)-2,0,Position_Dernier(I9*10/Présentation!$D$42,OFFSET(PA_EN_FR!$C$2,Position_premier(E9*10/Présentation!$D$42,PA_EN_FR!$B$2:$B$28,\"NumLig\",\">=\",TRUE)-2,0,Position_Dernier(E9*10/Présentation!$D$42,PA_EN_FR!$A$2:$A$28,\"NumLig\",\"<=\",TRUE)-Position_premier(E9*10/Présentation!$D$42,PA_EN_FR!$B$2:$B$28,\"NumLig\",\">=\",TRUE)+1,1),\"NumLig\",\"<=\",TRUE)-Position_premier(I9*10/Présentation!$D$42,OFFSET(PA_EN_FR!$D$2,Position_premier(E9*10/Présentation!$D$42,PA_EN_FR!$B$2:$B$28,\"NumLig\",\">=\",TRUE)-2,0,Position_Dernier(E9*10/Présentation!$D$42,PA_EN_FR!$A$2:$A$28,\"NumLig\",\"<=\",TRUE)-Position_premier(E9*10/Présentation!$D$42,PA_EN_FR!$B$2:$B$28,\"NumLig\",\">=\",TRUE)+1,1),\"NumLig\",\">=\",TRUE)+1,1),\"NumLig\",\"<=\",TRUE))-1),\"\"),L9))))","v":0},null,null,null,0,null,null,0,null,null,""]
[9,null,null,null,null,{"$f":"IF(Présentation!$D$42=10,IF(AND(E10>=Présentation!#REF!,I10>=Présentation!#REF!,K10>=Présentation!#REF!),\"CC\",IF(AND(E10>=Présentation!$I$45,I10>=Présentation!#REF!,K10>=Présentation!#REF!),\"KC\",IF(AND(E10>=Présentation!#REF!,I10>=Présentation!$J$45,K10>=Présentation!$K$45),\"SC\",IF(AND(E10>=Présentation!#REF!,I10>=Présentation!#REF!,K10>=Présentation!#REF!),\"PS\",\"\")))),IF(AND(E10>=Présentation!$I$43,I10>=Présentation!$J$43,K10>=Présentation!$K$43),\"CC\",IF(AND(E10>=Présentation!$P$43,I10>=Présentation!$Q$43,K10>=Présentation!$R$43),\"KC\",IF(AND(E10>=Présentation!$I$44,I10>=Présentation!$J$44,K10>=Présentation!$K$44),\"SC\",IF(AND(E10>=Présentation!$P$44,I10>=Présentation!$Q$44,K10>=Présentation!$R$44),\"PS\",\"\")))))","v":""},null,null,null,null,null,0,{"$f":"IF(Présentation!$D$44=\"IC\",E10*I10,IF(Présentation!$D$44=\"GO\",E10*10+I10,IF(Présentation!$D$44=\"GOD\",E10*100+I10*10+K10,IF(Présentation!$D$44=\"PA\",IFERROR(INDEX(PA_EN_FR!$H$2:$H$28,(Position_Dernier(K10*10/Présentation!$D$42,OFFSET(PA_EN_FR!$E$2,Position_premier(I10*10/Présentation!$D$42,OFFSET(PA_EN_FR!$D$2,Position_premier(E10*10/Présentation!$D$42,PA_EN_FR!$B$2:$B$28,\"NumLig\",\">=\",TRUE)-2,0,Position_Dernier(E10*10/Présentation!$D$42,PA_EN_FR!$A$2:$A$28,\"NumLig\",\"<=\",TRUE)-Position_premier(E10*10/Présentation!$D$42,PA_EN_FR!$B$2:$B$28,\"NumLig\",\">=\")+1,1),\"NumLig\",\">=\",TRUE)-2,0,Position_Dernier(I10*10/Présentation!$D$42,OFFSET(PA_EN_FR!$C$2,Position_premier(E10*10/Présentation!$D$42,PA_EN_FR!$B$2:$B$28,\"NumLig\",\">=\",TRUE)-2,0,Position_Dernier(E10*10/Présentation!$D$42,PA_EN_FR!$A$2:$A$28,\"NumLig\",\"<=\",TRUE)-Position_premier(E10*10/Présentation!$D$42,PA_EN_FR!$B$2:$B$28,\"NumLig\",\">=\",TRUE)+1,1),\"NumLig\",\"<=\",TRUE)-Position_premier(I10*10/Présentation!$D$42,OFFSET(PA_EN_FR!$D$2,Position_premier(E10*10/Présentation!$D$42,PA_EN_FR!$B$2:$B$28,\"NumLig\",\">=\",TRUE)-2,0,Position_Dernier(E10*10/Présentation!$D$42,PA_EN_FR!$A$2:$A$28,\"NumLig\",\"<=\",TRUE)-Position_premier(E10*10/Présentation!$D$42,PA_EN_FR!$B$2:$B$28,\"NumLig\",\">=\",TRUE)+1,1),\"NumLig\",\">=\",TRUE)+1,1),\"NumLig\",\"<=\",TRUE))-1),\"\"),L10))))","v":0},null,null,null,0,null,null,0,null,null,""]
[10,null,null,null,null,{"$f":"IF(Présentation!$D$42=10,IF(AND(E11>=Présentation!#REF!,I11>=Présentation!#REF!,K11>=Présentation!#REF!),\"CC\",IF(AND(E11>=Présentation!$I$45,I11>=Présentation!#REF!,K11>=Présentation!#REF!),\"KC\",IF(AND(E11>=Présentation!#REF!,I11>=Présentation!$J$45,K11>=Présentation!$K$45),\"SC\",IF(AND(E11>=Présentation!#REF!,I11>=Présentation!#REF!,K11>=Présentation!#REF!),\"PS\",\"\")))),IF(AND(E11>=Présentation!$I$43,I11>=Présentation!$J$43,K11>=Présentation!$K$43),\"CC\",IF(AND(E11>=Présentation!$P$43,I11>=Présentation!$Q$43,K11>=Présentation!$R$43),\"KC\",IF(AND(E11>=Présentation!$I$44,I11>=Présentation!$J$44,K11>=Présentation!$K$44),\"SC\",IF(AND(E11>=Présentation!$P$44,I11>=Présentation!$Q$44,K11>=Présentation!$R$44),\"PS\",\"\")))))","v":""},null,null,null,null,null,0,{"$f":"IF(Présentation!$D$44=\"IC\",E11*I11,IF(Présentation!$D$44=\"GO\",E11*10+I11,IF(Présentation!$D$44=\"GOD\",E11*100+I11*10+K11,IF(Présentation!$D$44=\"PA\",IFERROR(INDEX(PA_EN_FR!$H$2:$H$28,(Position_Dernier(K11*10/Présentation!$D$42,OFFSET(PA_EN_FR!$E$2,Position_premier(I11*10/Présentation!$D$42,OFFSET(PA_EN_FR!$D$2,Position_premier(E11*10/Présentation!$D$42,PA_EN_FR!$B$2:$B$28,\"NumLig\",\">=\",TRUE)-2,0,Position_Dernier(E11*10/Présentation!$D$42,PA_EN_FR!$A$2:$A$28,\"NumLig\",\"<=\",TRUE)-Position_premier(E11*10/Présentation!$D$42,PA_EN_FR!$B$2:$B$28,\"NumLig\",\">=\")+1,1),\"NumLig\",\">=\",TRUE)-2,0,Position_Dernier(I11*10/Présentation!$D$42,OFFSET(PA_EN_FR!$C$2,Position_premier(E11*10/Présentation!$D$42,PA_EN_FR!$B$2:$B$28,\"NumLig\",\">=\",TRUE)-2,0,Position_Dernier(E11*10/Présentation!$D$42,PA_EN_FR!$A$2:$A$28,\"NumLig\",\"<=\",TRUE)-Position_premier(E11*10/Présentation!$D$42,PA_EN_FR!$B$2:$B$28,\"NumLig\",\">=\",TRUE)+1,1),\"NumLig\",\"<=\",TRUE)-Position_premier(I11*10/Présentation!$D$42,OFFSET(PA_EN_FR!$D$2,Position_premier(E11*10/Présentation!$D$42,PA_EN_FR!$B$2:$B$28,\"NumLig\",\">=\",TRUE)-2,0,Position_Dernier(E11*10/Présentation!$D$42,PA_EN_FR!$A$2:$A$28,\"NumLig\",\"<=\",TRUE)-Position_premier(E11*10/Présentation!$D$42,PA_EN_FR!$B$2:$B$28,\"NumLig\",\">=\",TRUE)+1,1),\"NumLig\",\">=\",TRUE)+1,1),\"NumLig\",\"<=\",TRUE))-1),\"\"),L11))))","v":0},null,null,null,0,null,null,0,{"$f":"Présentation!K1","v":"Process (Processus)"},null,""]

{"sheet":"PA_EN_FR","index":5,"n_rows":28,"n_cols":8,"rows_kept":28,"cut":false,"hidden":true,"merged":[]}
["Gm","GM","Om","OM","Dm","DM","PAEN","PAFR"]
[1,1,1,10,1,10,"L",{"$f":"IF(G2=\"L\",\"B\",IF(G2=\"M\",\"M\",IF(G2=\"H\",\"H\",\"X\")))","v":"B"}]
[2,3,1,7,1,10,"L",{"$f":"IF(G3=\"L\",\"B\",IF(G3=\"M\",\"M\",IF(G3=\"H\",\"H\",\"X\")))","v":"B"}]
[2,3,8,10,1,4,"L","B"]
[2,3,8,10,5,10,"M","M"]
[4,6,1,3,1,10,"L","B"]
[4,6,4,5,1,6,"L","B"]
[4,6,4,5,7,10,"M","M"]
[4,6,6,7,1,1,"L","B"]
[4,6,6,7,2,10,"M","M"]
[4,6,8,10,1,4,"M","M"]
[4,6,8,10,5,10,"H","H"]
[7,8,1,1,1,10,"L","B"]
[7,8,2,3,1,4,"L","B"]
[7,8,2,3,5,6,"M","M"]
[7,8,2,3,7,10,"H","H"]
[7,8,4,5,1,6,"M","M"]
[7,8,4,5,7,10,"H","H"]
[7,8,6,7,1,1,"M","M"]
[7,8,6,7,2,10,"H","H"]
[7,8,8,10,1,10,"H","H"]
[9,10,1,1,1,10,"L","B"]
[9,10,2,3,1,1,"L","B"]
[9,10,2,3,2,4,"M","M"]
[9,10,2,3,5,10,"H","H"]
[9,10,4,5,1,1,"M","M"]
[9,10,4,5,2,10,"H","H"]
[9,10,6,10,1,10,"H","H"]

{"sheet":"Gravité","index":6,"n_rows":16,"n_cols":11,"rows_kept":16,"cut":false,"hidden":true,"merged":[]}
["Filtre","Max","Grille","Cotation","Statut","Personnalisé","Fonctionnalité","Qualité","Maintenabilité","Projet","G_LSS"]
[1,10,{"$f":"IF(A2=INT(A2),A2,(A2+0.5)/2)&\" / \"&B2","v":"1 / 10"},{"$f":"VALUE(TRIM(LEFT(C2,2)))","v":1},"Négligeable","Pas de défaut ou sans conséquences","Sans Effet Discernable pour le Client","Aucun défaut constatable","Sans Effet Discernable pour le Client.\nTemps d'Intervention négligeable","Sans Effet Discernable sur le projet","Sans impact sur la sécurité, sur la finance, ni sur les objectifs"]
[1.5,5,{"$f":"IF(A3=INT(A3),A3,(A3+0.5)/2)&\" / \"&B3","v":"1 / 5"},{"$f":"VALUE(TRIM(LEFT(C3,2)))","v":1},"Négligeable","Sans Effet","Sans Effet Discernable ou à peine perceptible pour le Client","Défauts acceptables suivant les critères applicables","Sans Effet Discernable ou à peine perceptible pour le Client.\nTemps d'Intervention ≥ 3 min","Sans Effet Discernable, avec devoir d'information éventuel du client","Sans conséquences sur la sécurité, sur la finance, ni sur les objectifs, mais nécessitant une légère correction (de - 1 h)"]
[2,10,"2 / 10",2,"Négligeable","Défaut acceptable sans effet perceptible","Effet à peine perceptible","Défaut acceptable suivant les critères applicables","Effet à peine perceptible. \nTemps d'Intervention ≥ 3 min","Il y aura besoin d'informer le client, mais il y aura compréhension et adhésion","Impact sans conséquences, mais nécessitant une légère correction (de - 1 h)"]
[3,10,"3 / 10",3,"Mineure","Non-Conformité Invisible avec Effets Perceptibles","Non-conformité moyennement détectable par l'utilisateur moyen","Retouche partielle au poste de production","Non-conformité moyennement détectable par l'utilisateur moyen. \nTemps d'Intervention ≥ 5 min","Il y aura besoin de justifier auprès du client,  mais il n'y aura pas soit compréhension soit adhésion","Impact mineur sur les objectifs (couts, délais) et sans impact sur la qualité,  mais nécessitant une petite correction ( ≥ 1 h)"]
[3.5,5,"2 / 5",2,"Mineure","Non-Conformité Acceptable","Non-conformité observable spontanément par un utilisateur moyen","Retouche partielle ou totale au poste de production","Non-conformité observable spontanément par un utilisateur moyen. \nTemps d'Intervention ≥ 5 min","Il y aura besoin de justifier auprès du client,  avec une détérioration probable des relations avec lui","Impact mineur sur les objectifs (couts, délais) et sans impact sur la qualité, mais nécessitant une correction mineure (de - 2 h)"]
[4,10,"4 / 10",4,"Mineure","Non-Conformité Visible","Non-conformité observée spontanément","Retouche de la totalité au poste de production","Non-conformité observée spontanément. \nTemps d'Intervention ≥ 10 min","Il y aura un impact (déterioration) sur les relations avec le client","Impact mineur sur les objectifs (couts, délais) et sans impact sur la qualité, mais nécessitant une correction (de - 4 h)"]
[5,10,"5 / 10",5,"Important","Dégradation d'une Fonction Secondaire","Dégradation d'une fonction secondaire","Réparation partielle de la production","Dégradation d'une fonction secondaire. \nTemps d'Intervention ≥ 20 min","Il y aura un produit pleinement fonctionnel mais en retard (< 2x)","[Par défaut]  Impact majeur sur les objectifs (dès 5% de qualité des livrables), et nécessitant une correction (de - 1 jour)"]
[5.5,5,"3 / 5",3,"Important","Dégradation Mineure","Dégradation ou Perte d'une fonction secondaire","Réparation partielle ou totale de la production","Dégradation ou Perte d'une fonction secondaire. \nTemps d'Intervention ≥ 20 min","produit fonctionnel mais en retard, impliquant une possible ralonge bugétaire","[Par défaut]  Impact majeur sur les objectifs (dès 5% de qualité des livrables), et nécessitant des corrections ( ≥ 1 jour)"]
[6,10,"6 / 10",6,"Important","Perte d'une Fonction Secondaire","Perte d'une fonction secondaire","Réparation totale de la production","Perte d'une fonction secondaire. \nTemps d'Intervention ≥ 40 min","Il y aura un produit fonctionnel mais en retard (> 2x) ou demandant une ralonge budgétaire (>1x et < 2x)","[Par défaut]  Impact majeur sur les objectifs (dès 10% de qualité des livrables), et nécessitant des corrections ( ≥ 2 jours)"]
[7,10,"7 / 10",7,"Critique","Dégradation d'une Fonction Primaire","Dégradation d'une fonction primaire","Rebut partiel  de la production","Dégradation d'une fonction primaire. \nTemps d'Intervention ≥ 60 min","Il y aura un produit pleinement fonctionnel mais très en retard (> 2x) ou demandant une grosse ralonge budgétaire (> 2x)","[Partage avec Pairs] Impact critique (à partir 20% de qualité des livrables) et nécessitant des corrections ( ≥ 1 semaine)"]
[7.5,5,"4 / 5",4,"Critique","Perte de la Fonction Attendue","Dégradation ou Perte d'une fonction primaire","Rebut partiel ou total de la production","Dégradation ou Perte d'une fonction primaire. \nTemps d'Intervention  ≥ 60 min","produit non utilisable par le client, soit non fonctionnel, soit reçu trop tard","[Partage avec Pairs] Ressource surchargée, ou  mobilisée ailleurs, avec dépassement de délai dommageable, ou Impact critique (à partir 20% de qualité des livrables) avec corrections ( ≥ 1 semaine)"]
[8,10,"8 / 10",8,"Critique","Perte d'une Fonction Primaire","Perte d'une fonction primaire","Rebut total de la production","Perte des fonctions primaires. \nTemps d'Intervention ≥ 120 min","Il y aura un produit non pleinement fonctionnel à l'heure ou un produit fonctionnel mais trop en retard pour le rendre utilisable par le client","[Partage avec Pairs] Ressource surchargée, ou  mobilisée ailleurs, avec dépassement de délai dommageable (même avec correction)"]
[9,10,"9 / 10",9,"Sécuritaire","Affecte la Sécurité ou la Réglementation avec Avertissement","Affecte la Sécurité ou la Réglementation avec Avertissement","Affecte la Sécurité ou la Réglementation avec Avertissement","Affecte la Sécurité ou la Réglementation avec Avertissement","Il y aura un produit non pleinement fonctionnel livré en fin de projet","[Partage avec Gouvernance] Impact sur les objectifs nécessitant une prise de décision externe"]
[9.5,5,"5 / 5",5,"Sécuritaire","Danger de Mort Possible","Affecte la Sécurité ou la Réglementation","Affecte la Sécurité ou la Réglementation","Affecte la Sécurité ou la Réglementation","Fin de projet sans un produit fonctionnel livré","[Partage avec Gouvernance] Impact sur la sécurité, sur la finance ou sur les objectifs, nécessitant une prise de décision externe"]
[10,10,"10 / 10",10,"Sécuritaire","Affecte la Sécurité ou la Réglementation sans Avertissement","Affecte la Sécurité ou la Réglementation sans Avertissement","Affecte la Sécurité ou la Réglementation sans Avertissement","Affecte la Sécurité ou la Réglementation sans Avertissement","Il n'y aura pas de produit du tout à la fin du projet","[Partage avec Gouvernance] Impact sur la sécurité ou  sur la finance, nécessitant une prise de décision externe"]

{"sheet":"Occurrence","index":7,"n_rows":16,"n_cols":16,"rows_kept":16,"cut":false,"hidden":true,"merged":[]}
["Filtre","Max","Grille","Cotation","Statut","Personnalisé","Fonctionnalité","Maîtrise","Prévention","Maintenabilité","Qualité","Capabilité","Nombre_Z","ppm_Process","Projet","G_LSS"]
[1,10,{"$f":"IF(A2=INT(A2),A2,(A2+0.5)/2)&\" / \"&B2","v":"1 / 10"},{"$f":"VALUE(TRIM(LEFT(C2,2)))","v":1},"Improbable","Jamais (impossible)","Impossible de par la conception","Improbable parce que la Cause est impossible","Défaillance éliminée par un contrôle préventif","Jamais (impossible)","Jamais, une sécurité empêche l'apparition de la cause.","Cp ≥ 3 ou Cpk ≥ 2","Z > 9",0,"Jamais","Les effets liés à cette cause n'ont jamais été constatés sur un de nos processus (activité ou projet)"]
[1.5,5,{"$f":"IF(A3=INT(A3),A3,(A3+0.5)/2)&\" / \"&B3","v":"1 / 5"},{"$f":"VALUE(TRIM(LEFT(C3,2)))","v":1},"Improbable","Impossible (jamais vu)","Défaillances improbables (< 1 / 100 000) avec une conception éprouvée de longue date","Improbable parce que la Cause est impossible ou complètement sous contrôle","Les contrôles préventifs indiquent une confiance dans la conformité de la conception ou savent détecter des défaillances en relation avec la cause","Impossible (jamais vu)","\nNon-Qualité ≤ 3,4 ppm","Cp ≥ 2 ou Cpk ≥ 1,5","\nZ > 6","> 0","N'arrive pratiquement Jamais","Les effets liés à cette cause n'ont jamais été constatés sur un de nos processus (activité ou projet)"]
[2,10,"2 / 10",2,"Improbable","Pas Impossible (jamais vu)","Défaillances improbables (< 1 / 100 000) avec une conception éprouvée dont l'efficacité a été confirmée avec une confiance significative","Improbable parce que la Cause est complètement sous contrôle","Les contrôles préventifs indiquent une confiance dans la conformité de la conception et savent détecter des défaillances en relation avec la cause","Pas Impossible (jamais vu)","Non-Qualité > 3,4 ppm","Cp < 2 ou  Cpk < 1,5","Z < 6","≥ 3","Occurrence très sporadique sans caractère de répétition : On ne l'a jamais vu mais on sait que ça pourrait survenir une fois sur toute la vie de cette expérience","Les effets liés à cette cause n'ont jamais été constatés sur un de nos processus (activité ou projet)"]
[3,10,"3 / 10",3,"Rare","Envisageable (vu >5 ans)","Défaillances improbables (≥ 1 / 100 000) avec une conception légèrement modifiée dont l'efficacité démontrée des bonnes pratiques a été confirmée","Inopinée parce que la détection du Mode est sous un contrôle totalement automatisé","Les contrôles préventifs permettent de prévoir la conformité de la conception et savent détecter des défaillances en relation avec la cause","Envisageable (vu >5 ans)","Non-Qualité > 10 ppm","Cp < 1,95 ou Cpk < 1,42","Z <  5,76","≥ 10","Occurrence très sporadique sans caractère de répétition : On l'a déjà vu une seul fois sur une autre expérience","Les effets liés à cette cause sont déjà arrivés sur 1 autre processus (activité ou projet) ou sur moins de 10% de nos activités (ou projets). "]
[3.5,5,"2 / 5",2,"Rare","Parfois (≤4 ans)","Défaillances improbables (≥ 1 / 100 000) avec une conception dont les bonnes pratiques ont prouvé leur efficacité","Inopinée parce que la détection du Mode est sous un contrôle totalement assisté ou automatisé","Les contrôles préventifs donnent quelques indications de la conformité de la conception ou savent détecter des défaillances en relation avec la cause.","Parfois (≤4 ans)","Non-Qualité > 32 ppm","Cp < 1,83 ou Cpk <1,33","Z < 5,5","≥ 32","Occurrence très sporadique sans caractère de répétition : On l'a déjà vu une seul fois sur une autre expérience","Les effets liés à cette cause sont déjà arrivés sur 1 autre processus (activité ou projet) ou sur moins de 10% de nos activités (ou projets). "]
[4,10,"4 / 10",4,"Rare","Déjà Arrivé (≤5 ans)","Défaillances improbables (≥ 1 / 10 000) avec une conception dont l'efficacité des bonnes pratiques a déjà été démontrée","Inopinée parce que la détection du Mode est sous un contrôle totalement assisté","Les contrôles préventifs donnent quelques indications de la conformité de la conception et savent détecter des défaillances en relation avec la cause.","Déjà Arrivé (≤5 ans)","Non-Qualité >100 ppm","Cp < 1,74 ou Cpk < 1,24","Z < 5,22","≥ 100","Occurrence reconnue sans caractère de répétition : On la déjà vu plusieurs fois sur d'autres expériences","Les effets liés à cette cause sont déjà arrivés sur 2 autres processus (activité ou projet) ou sur moins de 20% de nos activités (ou projets). "]
[5,10,"5 / 10",5,"Probable","Récent (≤3 ans)","Défaillances probables (≥ 1 / 2 000) avec une conception dont les bonnes pratiques n'ont pas encore prouvé leur efficacité","Prévisible, parce que la détection de la Cause n'est pas certaine","Les contrôles préventifs donnent quelques indications de la performance et savent détecter des défaillances en relation avec la cause","Récent (≤3 ans)","Non-Qualité > 500 ppm","Cp <1,6 ou Cpk < 1,10","Z < 4,79","≥ 500","Occurrence reconnue avec un caractère répétitif possible : On parvient à se faire une idée approximative de son caractère d'apparition ","[Par défaut] Les effets liés à cette cause sont déjà apparus sur 3 autres processus (activité ou projet) ou sur plus de 30% de nos activités (ou projets). "]
[5.5,5,"3 / 5",3,"Probable","Souvent (≤1 an)","Défaillances probables (≥ 1 / 2 000) avec des innovations dont les bonnes pratiques n'ont pas encore prouvé leur efficacité","Prévisible, parce que la détection de la Cause, ou du Mode, n'est pas certaine","Les contrôles préventifs donnent des indications limitées de la performance ou sont capables d'empêcher une cause de défaillance.","Souvent (≤1 an)","Non-Qualité > 1350 ppm","Cp < 1,5 ou Cpk < 1","Z < 4,5","≥ 1 350","Occurrence reconnue avec un caractère répétitif possible : On parvient à se faire une idée approximative de son caractère d'apparition ","[Par défaut] Les effets liés à cette cause sont déjà apparus sur 3 autres processus (activité ou projet) ou sur plus de 30% de nos activités (ou projets). "]
[6,10,"6 / 10",6,"Probable","Très Récent (≤1 semestre)","Défaillances probables (≥ 1 / 500) avec une conception déjà connue, mais dont les bonnes pratiques sont insuffisantes pour empêcher la cause d'apparaitre","Prévisible, parce que la détection du Mode n'est pas certaine","Les contrôles préventifs donnent des indications limitées de la performance et sont capables d'empêcher une cause de défaillance.","Très Récent (≤1 semestre)","Non-Qualité > 0,2% (2000 ppm)","Cp < 1,46 ou Cpk < 0,96","Z < 4,38","≥ 2 000","Occurrence reconnue avec un caractère répétitif certain : On discerne approximativement ses conditions d'apparition ","[Par défaut] Les effets liés à cette cause sont déjà apparus sur 4 autres processus (activité ou projet) ou sur plus de 40% de nos activités (ou projets). "]
[7,10,"7 / 10",7,"Fréquent","Fréquent (≤1 trimestre)","Défaillances fréquentes (≥ 1 / 100) avec des innovations sans bonnes pratiques connues et directement applicables","Prévisible, parce que la détection de la Cause n'est pas robuste","Les contrôles préventifs donnent des indications limitées de la performance","Fréquent (≤1 trimestre)","Non-Qualité > 1%","Cp < 1,28 ou Cpk < 0,78","Z < 3,83","≥ 10 000","Occurrence reconnue avec un caractère répétitif fort : On discerne facilement ses conditions d'apparition ","[Partage avec Pairs] Les effets liés à cette cause ont déjà été identifiés sur 5 autres processus (activité ou projet) ou sur plus de 50% de nos activités (ou projets)."]
[7.5,5,"4 / 5",4,"Fréquent","Récurrent (≤1 mois)","Défaillances fréquentes (≥ 1 / 100) avec des innovations dont les bonnes pratiques sont méconnues","Prévisible, parce que la détection de la Cause, ou du Mode, n'est pas robuste","Les contrôles préventifs donnent des indications limitées de la performance ou ne sont pas capables de mesurer les performances","Réccurent (≤1 mois)","Non-Qualité > 1,5 %","Cp < 1,25 ou Cpk < 0,75","Z < 3,75","≥ 12 300","Occurrence reconnue avec un caractère répétitif fort : On discerne facilement ses conditions d'apparition ","[Partage avec Pairs] Les effets liés à cette cause ont déjà été identifiés sur 5 autres processus (activité ou projet) ou sur plus de 50% de nos activités (ou projets)."]
[8,10,"8 / 10",8,"Fréquent","Régulier (≤2 semaines)","Défaillances fréquentes (≥ 1 / 50) avec des conceptions sans bonnes pratiques connues et directement applicables","Prévisible, parce que la détection du Mode n'est pas robuste","Les contrôles préventifs ne sont pas capables de mesurer les performances","Régulier (≤2 semaines)","Non-Qualité > 2%","Cp < 1,19 ou Cpk < 0,69","Z < 3,56","≥ 20 000","Occurrence quasi-systématique démontré par l'expérience ou le ressenti","[Partage avec Pairs] Les effets liés à cette cause ont déjà été identifiés sur plus de 5 autres processus (activité ou projet) ou sur plus de 75% de nos activités (ou projets)."]
[9,10,"9 / 10",9,"Systématique","Cyclique (≤1 semaine)","Défaillances systématiques (≥ 1 / 20) avec des innovations non-robustes","Systématique, parce que la détection de la Cause est inexistante","Les contrôles préventifs ne sont pas ciblés pour identifier les performances par rapport à des exigences spécifiques","Cyclique (≤1 semaine)","Non-Qualité > 5%","Cp < 1,05 ou Cpk < 0,55","Z < 3,16","≥ 50 000","Occurrence systématique démontré par l'expérience ou le ressenti","[Partage avec Gouvernance] Les effets liés à cette cause sont de notoriété publique et peut-être même déjà tracés et capitalisés."]
[9.5,5,"5 / 5",5,"Systématique","Inévitable (≤3 jours)","Défaillances quasi systématiques  (≥ 1 / 20) avec des innovations manquant de maturité","Systématique, parce que la détection de la Cause ou du Mode est inexistante","Les contrôles préventifs, s'ils existent,  ne sont pas capables de prédire les  performances","Inévitable (≤3 jours)","Non-Qualité > 6,7%","Cp < 1 ou Cpk < 0,5","Z < 3","≥ 66 807","Occurrence systématique démontré par l'expérience ou le ressenti","[Partage avec Gouvernance] Les effets liés à cette cause sont de notoriété publique"]
[10,10,"10 / 10",10,"Systématique","Chaque jour (≤ 1 jour)","Défaillances systématiques (≥ 1 / 10) avec l'application d'une nouvelle conception / technologie sans recul ou historique","Systématique, parce que la détection du Mode, est inexistante","Contrôle préventif inexistant ou incapable de prédire les performances sur le terrain","Chaque jour (≤ 1 jour)","Non-Qualité > 10 %","Cp < 0,93 ou Cpk < 0,43","Z < 2,81 ","≥ 100 000","Arrive Toujours","[Partage avec Gouvernance] Les effets liés à cette cause certains mais ne sont peut-être pas tracés et capitalisés."]

{"sheet":"Détection","index":8,"n_rows":16,"n_cols":15,"rows_kept":16,"cut":false,"hidden":true,"merged":[]}
["Filtre","Max","Grille","Cotation","Statut","Personnalisé","Fonctionnalité","Capabilité","Nombre_Z","Prévention","Maîtrise","Qualité","Maintenabilité","Projet","G_LSS"]
[1,10,{"$f":"IF(A2=INT(A2),A2,(A2+0.5)/2)&\" / \"&B2","v":"1 / 10"},{"$f":"VALUE(TRIM(LEFT(C2,2)))","v":1},"Certaine","Toujours (cause Impossible)","Détection (cause) Inutile car Apparition Impossible à la Source","Cp ≥ 3 ou Cpk ≥ 2","Z > 9","Prévention inutile car l'apparition de la Cause est impossible","La Cause est impossible","Détection de la cause pendant la prodution est inutile car son apparition est impossible.","Détection de la cause pendant la prodution est inutile car son apparition est impossible.","Toujours détectable","Détection systématique (100%) sur la cause (empêchant l'apparition du problème)"]
[1.5,5,{"$f":"IF(A3=INT(A3),A3,(A3+0.5)/2)&\" / \"&B3","v":"1 / 5"},{"$f":"VALUE(TRIM(LEFT(C3,2)))","v":1},"Certaine","Toujours (100%)","Détection (cause) Inutile ou rendu automatique à la Source (ex. Poka Yoké)","Cp ≥ 2 ou Cpk ≥ 1,5","\nZ > 6","Les contrôles préventifs indiquent une confiance dans la conformité de la conception ou savent détecter des défaillances en relation avec la cause","La Cause est impossible ou complètement sous contrôle","Détection (cause) Inutile ou rendu automatique pendant la production (ex. Poka Yoké)","Détection (cause) Inutile ou rendu automatique pendant la production (ex. Poka Yoké)","Détection Automatique de la cause","Détection systématique (100%) sur la cause ou le mode (permettant une maîtrise de l'apparition du problème)"]
[2,10,"2 / 10",2,"Certaine","Automatique (cause 100%)","Détection (cause) Automatique à la Source (ex. Poka Yoké)","Cp < 2 ou  Cpk < 1,5","Z < 6","Les contrôles préventifs indiquent une confiance dans la conformité de la conception et savent détecter des défaillances en relation avec la cause","La Cause est complètement sous contrôle","Détection de la cause automatiquement (ex. Poka Yoké) pendant la production","Détection de la cause automatiquement (ex. Poka Yoké) pendant la production","Détection Automatique déjà existante et ne nécessitant aucune action humaine pour détecter","Détection systématique (100%) sur le mode (permettant un confinement immédiat)"]
[3,10,"3 / 10",3,"Facile","Immédiate et bloquante (mode 100%)","Détection (mode) à la Source par moyens automatiques (100%) et bloquants","Cp < 1,95 ou Cpk < 1,42","Z <  5,76","Les contrôles préventifs permettent de prévoir la conformité de la conception et savent détecter des défaillances en relation avec la cause","La détection du Mode, ou ses Effets, est sous un contrôle totalement automatisé","Probabilité de détection du mode proche de 100%","Détection pendant la production par moyens automatiques (100%) et bloquants","Détection Automatique Simple (Type Poka Yoké)\nne nécessitant aucune action humaine pour détecter","Détection en début d'activité et un Contrôle est en place pour détecter le risque (Cause ou Mode) dans 80% des cas"]
[3.5,5,"2 / 5",2,"Facile","Facilement (≥ 80%)","Détection (mode) à la Source ou juste après elle par des moyens automatiques (100%) et bloquants ou par 2 contrôles Humains (100%)","Cp < 1,83 ou Cpk <1,33","Z < 5,5","Les contrôles préventifs donnent quelques indications de la conformité de la conception ou savent détecter des défaillances en relation avec la cause.","La détection du Mode, ou ses Effets, est sous un contrôle totalement assisté ou automatisé","Probabilité de détection du mode < 100%","Détection (mode) pendant la production ou juste après elle par des moyens automatiques (100%) et bloquants ou par 2 contrôles Humains (100%)","Détection Automatique du mode de défaillance","Détection en début d'activité et un Contrôle est en place pour détecter le risque (Cause ou Mode) dans 80% des cas"]
[4,10,"4 / 10",4,"Facile","Après-coup et bloquante (100%)","Détection (mode) après la Source par des moyens automatiques (100%) et bloquants ou par 2 contrôles Humains (100%)","Cp < 1,74 ou Cpk < 1,24","Z < 5,22","Les contrôles préventifs donnent quelques indications de la conformité de la conception et savent détecter des défaillances en relation avec la cause.","La détection du Mode, ou ses Effets, est sous un contrôle totalement assisté","Probabilité de détection du mode < 95%","Détection après la production avec des moyens automatiques (100%) et bloquants ou par 2 contrôles Humains (100%)","Détection Automatique Complexe, ne nécessitant aucune action humaine pour détecter (fiabilité >99%)","Détection en début d'activité et un Contrôle est en place pour détecter le risque (Cause ou Mode) dans 60% des cas"]
[5,10,"5 / 10",5,"Probable","Contrôle Humain Total (≥ 80%)","Détection (cause & mode) à la Source par des moyens alertant l'opérateur ou par 1 contrôle Humain (100%)","Cp <1,6 ou Cpk < 1,10","Z < 4,79","Les contrôles préventifs donnent quelques indications de la performance et savent détecter des défaillances en relation avec la cause","La détection de la Cause n'est pas certaine","Probabilité de détection du mode < 80%","Détection pendant la production avec moyens alertant l'opérateur ou par 1 contrôle Humain (100%)","Panachage détection non-humaine et humaine : 1 humain ordonnancé (Fiabilité ≥ 95%)","[Par défaut] Détection en cours d'activité et la détection est possible de manière impromptue ou sur environ 50% des cas"]
[5.5,5,"3 / 5",3,"Probable","Moyennement (≥ 50%)","Détection (cause et mode) à la Source ou juste après elle par des moyens automatiques (100%) et bloquants ou par 2 contrôles Humains (100%)","Cp < 1,5 ou Cpk < 1","Z < 4,5","Les contrôles préventifs donnent des indications limitées de la performance ou sont capables d'empêcher une cause de défaillance.","La détection de la Cause, du Mode, ou des Effets, n'est pas certaine","Probabilité de détection du mode < à 80%","Détection (cause et mode) pendant la production ou juste après elle par des moyens automatiques (100%) et bloquants ou par 2 contrôles Humains (100%)","Détection humaine assistée","[Par défaut] Détection en cours d'activité et la détection est possible de manière impromptue ou sur environ 50% des cas"]
[6,10,"6 / 10",6,"Probable","Mesure par échantillon (≥ 60%)","Détection (cause & mode) après la Source par des moyens de mesures par échantillonnage","Cp < 1,46 ou Cpk < 0,96","Z < 4,38","Les contrôles préventifs donnent des indications limitées de la performance et sont capables d'empêcher une cause de défaillance.","La détection du Mode, ou ses Effets, n'est pas certaine","Probabilité de détection du mode à 75%","Détection après la production avec des moyens de mesures par échantillonnage","Panachage détection non humaine et humaine : \n>1 humain ordonnancé\n1 humain non ordonnancé (Fiabilité ≥ 80%)","[Par défaut] Détection en cours d'activité et la détection est possible de manière impromptue ou sur environ 40% des cas"]
[7,10,"7 / 10",7,"Difficile","Mécanique par échantillon (≥ 40%)","Détection (mode) à la Source par des moyens mécaniques par échantillonnage","Cp < 1,28 ou Cpk < 0,78","Z < 3,83","Les contrôles préventifs donnent des indications limitées de la performance","La détection de la Cause n'est pas robuste","Probabilité de détection du mode < 50%","Détection pendant la production par des moyens mécaniques par échantillonnage","Panachage détection non humaine et humaine : >1 humains ordonnancé (Fiabilité ≥ 70%)","[Partage avec Pairs] Détection en fin d'activité avec un Contrôle existant mais non robuste avec moins de 25% des cas détectables"]
[7.5,5,"4 / 5",4,"Difficile","Difficilement (≥ 20%)","Détection (mode) à la Source ou juste après elle par des moyens mécaniques par échantillonnage","Cp < 1,25 ou Cpk < 0,75","Z < 3,75","Les contrôles préventifs donnent des indications limitées de la performance ou ne sont pas capables de mesurer les performances","La détection de la Cause, du Mode, ou des Effets, n'est pas robuste","Probabilité de détection du mode < à 50%","Détection (mode) pendant la production ou juste après elle par des moyens mécaniques par échantillonnage","Détection humaine planifiée","[Partage avec Pairs] Détection en fin d'activité avec un Contrôle existant mais non robuste avec moins de 25% des cas détectables"]
[8,10,"8 / 10",8,"Difficile","Visuel par échantillon (≥ 20%)","Détection (mode) après la Source par des moyens visuels par échantillonnage","Cp < 1,19 ou Cpk < 0,69","Z < 3,56","Les contrôles préventifs ne sont pas capables de mesurer les performances","La détection du Mode, ou ses Effets, n'est pas robuste","Probabilité de détection du mode < 25%","Détection après la production avec des moyens visuels par échantillonnage","Détection humaine simplement ordonnancée (Fiabilité ≥ 50%)","[Partage avec Pairs] Détection en fin d'activité avec un Contrôle existant mais non robuste avec moins de 10% des cas détectables"]
[9,10,"9 / 10",9,"Impossible","Détection très difficile (< 20%)","Difficile à Détecter (cause et mode)","Cp < 1,05 ou Cpk < 0,55","Z < 3,16","Les contrôles préventifs ne sont pas ciblés pour identifier les performances par rapport à des exigences spécifiques","La détection de la Cause est inexistante ou impossible","Probabilité de détection du mode < 10%","Détection impossible du mode (ou de ses effets) avant utilisation finale","Détection non planifiée","[Partage avec Gouvernance] Détection uniquement après fourniture des livrables"]
[9.5,5,"5 / 5",5,"Impossible","Jamais certaine (< 20%)","Indétectable ou Difficile à Détecter (cause et mode)","Cp < 1 ou Cpk < 0,5","Z < 3","Les contrôles préventifs, s'ils existent,  ne sont pas capables de prédire les  performances","La détection de la Cause, du Mode, ou des Effets, est inexistante ou impossible (causes multiples)","Probabilité de détection du mode < à 10%","Détection impossible du mode (ou de ses effets) avant utilisation finale, ou autre causes possibles","Indétectable, ou détection non planifiée","[Partage avec Gouvernance] Aucune solution de détection avant la fourniture des livrables"]
[10,10,"10 / 10",10,"Impossible","Détection impossible (0%)","Défaut indétectable (cause et mode)","Cp < 0,93 ou Cpk < 0,43","Z < 2,81 ","Contrôle préventif inexistant ou incapable de prédire les performances sur le terrain","La détection du Mode, ou ses Effets, est inexistante ou impossible (causes multiples)","Probabilité de détection du mode proche de 0%","Détection impossible de la Cause, et le Mode a d'autres causes possibles","Toujours indétectable","[Partage avec Gouvernance] Non détectable par un contrôle ou aucune solution de détection connue à ce jour"]